Workbook

Sheet Orçamento
O3: UNIDADE ESCOLAR | V3: CÓDIGO INEP
O4: CENTRO DE ENSINO EM PERÍODO INTEGRAL PROFESSOR PEDRO GOMES | V4: 52033597
A6: Nmax | M6: Ajustar altura? | O6: OBRA | S6: DATA | V6: CIDADE
A7: =MAX($C$18:$C$279) -> 3 | M7: NÃO | O7: REFORMA | S7: 2020-03-25 | V7: GOIÂNIA
O9: CRE | R9: ENDEREÇO | V9: REFERÊNCIA AGETOP
O10: GOIÂNIA | R10: AV SERGIPE C/ BENJAMIN CONSTANT S/N, SETOR CAMPINAS, CEP:74550-408 | V10: DEZ/18 | W10: DESONERADA
O12: ÁREA EXISTENTE (M²) | R12: ÁREA A CONSTRUIR (M²) | S12: ÁREA TOTAL CONSTRUÍDA (M²) | V12: REFERÊNCIA SINAPI
O13: 5317.06 | S13: 5317.06 | V13: JUN/19 | W13: DESONERADA
L15: FILTRO | O15: PLANILHA ORÇAMENTÁRIA
A16: Nível E | B16: Save Nivel | C16: Nível C | D16: Altura | E16: n1 | F16: n2 | G16: n3 | H16: n4 | I16: n5 | J16: Czero | K16: Cnível | L16: ↓ | M16: Nível | N16: Nível Corrigido | O16: ITEM | P16: TABELA | Q16: CODIGO | R16: DESCRIÇÃO DOS SERVIÇOS | S16: UNID | T16: QUANT | U16: MAT | V16: MO | W16: T.SERVIÇO | X16: OBSERVAÇÕES¹
A17: =CHOOSE(1+LOG(1+2*(ORÇAMENTO.Nivel="Nível 1")+4*(ORÇAMENTO.Nivel="Nível 2")+8*(ORÇAMENTO.Nivel="Nível 3")+16*(ORÇAMENTO.Nivel="Nível 4")+32*(ORÇAMENTO.Nivel="Serviço"),2),0,1,2,3,4,"S") -> S | B17: =IF(OR(C17="s",C17=0),OFFSET(B17,-1,0),C17) -> Save Nivel | C17: =IF(OFFSET(C17,-1,0)="L",1,IF(OFFSET(C17,-1,0)=1,2,IF(OR(A17="s",A17=0),"S",IF(AND(OFFSET(C17,-1,0)=2,A17=4),3,IF(AND(OR(OFFSET(C17,-1,0)="s",OFFSET(C17,-1,0)=0),A17<>"s",A17>OFFSET(B17,-1,0)),OFFSET(B17,-1,0),A17))))) -> S | D17: =IF(OR(C17="S",C17=0),0,IF(ISERROR(K17),J17,SMALL(J17:K17,1))) -> 0 | E17: =IF($C17=1,OFFSET(E17,-1,0)+1,OFFSET(E17,-1,0)) -> n1 | F17: =IF($C17=1,0,IF($C17=2,OFFSET(F17,-1,0)+1,OFFSET(F17,-1,0))) -> n2 | G17: =IF(AND($C17<=2,$C17<>0),0,IF($C17=3,OFFSET(G17,-1,0)+1,OFFSET(G17,-1,0))) -> n3 | H17: =IF(AND($C17<=3,$C17<>0),0,IF($C17=4,OFFSET(H17,-1,0)+1,OFFSET(H17,-1,0))) -> n4 | I17: =IF(AND($C17<=4,$C17<>0),0,IF(AND($C17="S",$W17>0),OFFSET(I17,-1,0)+1,OFFSET(I17,-1,0))) -> n5 | J17: =IF(OR($C17="S",$C17=0),0,MATCH(0,OFFSET($D17,1,$C17,ROW($C$279)-ROW($C17)),0)) -> 0 | K17: =IF(OR($C17="S",$C17=0),0,MATCH(OFFSET($D17,0,$C17)+1,OFFSET($D17,1,$C17,ROW($C$279)-ROW($C17)),0)) -> 0 | M17: Serviço | N17: Serviço | O17: - | P17: SINAPI | R17: (sem código) | S17: - | U17: 0 | V17: 0 | W17: 0
A18: 0 | C18: L | D18: =COUNTA(OFFSET(D18,1,0):D$279) -> 260 | E18: =LEFT(O19,1)-1 -> 0 | L18: F | M18: LOTE | N18: LOTE | O18: REFORMA - CENTRO DE ENSINO EM PERÍODO INTEGRAL PROFESSOR PEDRO GOMES | W18: 0
A19: 1 | B19: =IF(OR(C19="s",C19=0),OFFSET(B19,-1,0),C19) -> 1 | C19: =IF(OFFSET(C19,-1,0)="L",1,IF(OFFSET(C19,-1,0)=1,2,IF(OR(A19="s",A19=0),"S",IF(AND(OFFSET(C19,-1,0)=2,A19=4),3,IF(AND(OR(OFFSET(C19,-1,0)="s",OFFSET(C19,-1,0)=0),A19<>"s",A19>OFFSET(B19,-1,0)),OFFSET(B19,-1,0),A19))))) -> 1 | D19: =IF(OR(C19="S",C19=0),0,IF(ISERROR(K19),J19,SMALL(J19:K19,1))) -> 260 | E19: =IF($C19=1,OFFSET(E19,-1,0)+1,OFFSET(E19,-1,0)) -> 1 | F19: =IF($C19=1,0,IF($C19=2,OFFSET(F19,-1,0)+1,OFFSET(F19,-1,0))) -> 0 | G19: =IF(AND($C19<=2,$C19<>0),0,IF($C19=3,OFFSET(G19,-1,0)+1,OFFSET(G19,-1,0))) -> 0 | H19: =IF(AND($C19<=3,$C19<>0),0,IF($C19=4,OFFSET(H19,-1,0)+1,OFFSET(H19,-1,0))) -> 0 | I19: 0 | J19: =IF(OR($C19="S",$C19=0),0,MATCH(0,OFFSET($D19,1,$C19,ROW($C$279)-ROW($C19)),0)) -> 260 | K19: =IF(OR($C19="S",$C19=0),0,MATCH(OFFSET($D19,0,$C19)+1,OFFSET($D19,1,$C19,ROW($C$279)-ROW($C19)),0)) ->  | L19: F | M19: Nível 1 | N19: Nível 1 | O19: 1. | P19: AGETOP | R19: REFORMA | W19: 0
A20: 2 | B20: =IF(OR(C20="s",C20=0),OFFSET(B20,-1,0),C20) -> 2 | C20: =IF(OFFSET(C20,-1,0)="L",1,IF(OFFSET(C20,-1,0)=1,2,IF(OR(A20="s",A20=0),"S",IF(AND(OFFSET(C20,-1,0)=2,A20=4),3,IF(AND(OR(OFFSET(C20,-1,0)="s",OFFSET(C20,-1,0)=0),A20<>"s",A20>OFFSET(B20,-1,0)),OFFSET(B20,-1,0),A20))))) -> 2 | D20: =IF(OR(C20="S",C20=0),0,IF(ISERROR(K20),J20,SMALL(J20:K20,1))) -> 14 | E20: =IF($C20=1,OFFSET(E20,-1,0)+1,OFFSET(E20,-1,0)) -> 1 | F20: =IF($C20=1,0,IF($C20=2,OFFSET(F20,-1,0)+1,OFFSET(F20,-1,0))) -> 1 | G20: =IF(AND($C20<=2,$C20<>0),0,IF($C20=3,OFFSET(G20,-1,0)+1,OFFSET(G20,-1,0))) -> 0 | H20: =IF(AND($C20<=3,$C20<>0),0,IF($C20=4,OFFSET(H20,-1,0)+1,OFFSET(H20,-1,0))) -> 0 | I20: 0 | J20: 259 | K20: 14 | M20: Nível 2 | N20: Nível 2 | O20: - | P20: AGETOP | R20: SERVIÇOS PRELIMINARES | W20: 0
A21: S | B21: =IF(OR(C21="s",C21=0),OFFSET(B21,-1,0),C21) -> 2 | C21: =IF(OFFSET(C21,-1,0)="L",1,IF(OFFSET(C21,-1,0)=1,2,IF(OR(A21="s",A21=0),"S",IF(AND(OFFSET(C21,-1,0)=2,A21=4),3,IF(AND(OR(OFFSET(C21,-1,0)="s",OFFSET(C21,-1,0)=0),A21<>"s",A21>OFFSET(B21,-1,0)),OFFSET(B21,-1,0),A21))))) -> S | D21: =IF(OR(C21="S",C21=0),0,IF(ISERROR(K21),J21,SMALL(J21:K21,1))) -> 0 | E21: 1 | F21: 1 | G21: 0 | H21: 0 | I21: 0 | J21: 0 | K21: 0 | M21: Serviço | N21: Serviço | O21: - | P21: AGETOP | Q21: 20102 | R21: DEMOLICAO-COBERTURA TELHA FIBROCIMENTO/FIBRA DE VIDRO/SIMILARES C/ TRANSP. ATÉ CB. E CARGA | S21: m2 | T21: 2311.13 | W21: 0
A22: S | B22: 2 | C22: S | D22: 0 | E22: 1 | F22: 1 | G22: 0 | H22: 0 | I22: 0 | J22: 0 | K22: 0 | M22: Serviço | N22: Serviço | O22: - | P22: AGETOP | Q22: 20103 | R22: DEMOLIÇÃO ESTRUTURA EM MADEIRA TELHADO C/ TRANSP. ATÉ CB. E CARGA | S22: m2 | T22: 2311.13 | W22: 0
A23: S | B23: 2 | C23: S | D23: 0 | E23: 1 | F23: 1 | G23: 0 | H23: 0 | I23: 0 | J23: 0 | K23: 0 | M23: Serviço | N23: Serviço | O23: - | P23: AGETOP | Q23: 20121 | R23: DEM. MANUAL EM CONCR.SIMPLES C/TR.ATE CB.E CARGA (O.C.) | S23: m3 | T23: 55.6455 | W23: 0
A24: S | B24: 2 | C24: S | D24: 0 | E24: 1 | F24: 1 | G24: 0 | H24: 0 | I24: 0 | J24: 0 | K24: 0 | M24: Serviço | N24: Serviço | O24: - | P24: SINAPI | Q24: 97633 | R24: DEMOLIÇÃO DE REVESTIMENTO CERÂMICO, DE FORMA MANUAL, SEM REAPROVEITAMENTO. AF_12/2017 | S24: M2 | T24: 168.51 | W24: 0 | X24: Referência: AGETOP - 20115
A25: S | B25: 2 | C25: S | D25: 0 | E25: 1 | F25: 1 | G25: 0 | H25: 0 | I25: 0 | J25: 0 | K25: 0 | M25: Serviço | N25: Serviço | O25: - | P25: SINAPI | Q25: 97631 | R25: DEMOLIÇÃO DE ARGAMASSAS, DE FORMA MANUAL, SEM REAPROVEITAMENTO. AF_12/2017 | S25: M2 | T25: 92.21 | W25: 0
A26: S | B26: 2 | C26: S | D26: 0 | E26: 1 | F26: 1 | G26: 0 | H26: 0 | I26: 0 | J26: 0 | K26: 0 | M26: Serviço | N26: Serviço | O26: - | P26: SINAPI | Q26: 97622 | R26: DEMOLIÇÃO DE ALVENARIA DE BLOCO FURADO, DE FORMA MANUAL, SEM REAPROVEITAMENTO. AF_12/2017 | S26: M3 | T26: 0.1845 | W26: 0 | X26: Referência: AGETOP - 20118
A27: S | B27: 2 | C27: S | D27: 0 | E27: 1 | F27: 1 | G27: 0 | H27: 0 | I27: 0 | J27: 0 | K27: 0 | M27: Serviço | N27: Serviço | O27: - | P27: AGETOP | Q27: 20137 | R27: DEMOLIÇAO BACIA SANITARIA C/ TRANSP. ATÉ CB. E CARGA | S27: Un | T27: 2 | W27: 0
A28: S | B28: 2 | C28: S | D28: 0 | E28: 1 | F28: 1 | G28: 0 | H28: 0 | I28: 0 | J28: 0 | K28: 0 | M28: Serviço | N28: Serviço | O28: - | P28: AGETOP | Q28: 20138 | R28: DEMOLIÇAO DE LAVATÓRIO C/ TRANSP. ATÉ CB. E CARGA | S28: Un | T28: 2 | W28: 0
A29: S | B29: 2 | C29: S | D29: 0 | E29: 1 | F29: 1 | G29: 0 | H29: 0 | I29: 0 | J29: 0 | K29: 0 | M29: Serviço | N29: Serviço | O29: - | P29: AGETOP | Q29: 20140 | R29: DEMOLIÇAO DE VÁLVULA DE DESCARGA C/ TRANSP. ATÉ CB. E CARGA | S29: Un | T29: 2 | W29: 0
A30: S | B30: 2 | C30: S | D30: 0 | E30: 1 | F30: 1 | G30: 0 | H30: 0 | I30: 0 | J30: 0 | K30: 0 | M30: Serviço | N30: Serviço | O30: - | P30: AGETOP | Q30: 20157 | R30: DEMOLIÇÃO CALHAS/ RUFOS EM CHAPA C/TR.AT.C.B.E CARGA | S30: m2 | T30: 872.76 | W30: 0
A31: S | B31: 2 | C31: S | D31: 0 | E31: 1 | F31: 1 | G31: 0 | H31: 0 | I31: 0 | J31: 0 | K31: 0 | M31: Serviço | N31: Serviço | O31: - | P31: AGETOP | Q31: 20163 | R31: DEMOLIÇÃO DAS INSTALAÇÕES HIDROSANITÁRIAS E AFINS C/ TRANSP. ATÉ CB. E CARGA | S31: H | T31: 4 | W31: 0
A32: S | B32: 2 | C32: S | D32: 0 | E32: 1 | F32: 1 | G32: 0 | H32: 0 | I32: 0 | J32: 0 | K32: 0 | M32: Serviço | N32: Serviço | O32: - | P32: AGETOP | Q32: 20139 | R32: DEMOLIÇAO DE BANCADAS C/ TRANSP. ATÉ CB. E CARGA | S32: m2 | T32: 5.93 | W32: 0
A33: S | B33: 2 | C33: S | D33: 0 | E33: 1 | F33: 1 | G33: 0 | H33: 0 | I33: 0 | J33: 0 | K33: 0 | M33: Serviço | N33: Serviço | O33: - | P33: SINAPI | Q33: 74209/1 | R33: PLACA DE OBRA EM CHAPA DE ACO GALVANIZADO | S33: M2 | T33: 4.5 | W33: 0 | X33: Referência: AGETOP - 21301
A34: 2 | B34: 2 | C34: 2 | D34: 3 | E34: 1 | F34: 2 | G34: 0 | H34: 0 | I34: 0 | J34: 245 | K34: 3 | M34: Nível 2 | N34: Nível 2 | O34: - | P34: AGETOP | R34: TRANSPORTES | S34: - | W34: 0
A35: S | B35: 2 | C35: S | D35: 0 | E35: 1 | F35: 2 | G35: 0 | H35: 0 | I35: 0 | J35: 0 | K35: 0 | M35: Serviço | N35: Serviço | O35: - | P35: SINAPI | Q35: 72900 | R35: TRANSPORTE DE ENTULHO COM CAMINHAO BASCULANTE 6 M3, RODOVIA PAVIMENTADA, DMT 0,5 A 1,0 KM | S35: M3 | T35: 156.0968 | W35: 0
A36: S | B36: 2 | C36: S | D36: 0 | E36: 1 | F36: 2 | G36: 0 | H36: 0 | I36: 0 | J36: 0 | K36: 0 | M36: Serviço | N36: Serviço | O36: - | P36: SINAPI | Q36: 72897 | R36: CARGA MANUAL DE ENTULHO EM CAMINHAO BASCULANTE 6 M3 | S36: M3 | T36: 156.0968 | W36: 0
A37: 2 | B37: 2 | C37: 2 | D37: 4 | E37: 1 | F37: 3 | G37: 0 | H37: 0 | I37: 0 | J37: 242 | K37: 4 | M37: Nível 2 | N37: Nível 2 | O37: - | P37: AGETOP | R37: SERVIÇO EM TERRA | S37: - | W37: 0
A38: =CHOOSE(1+LOG(1+2*(ORÇAMENTO.Nivel="Nível 1")+4*(ORÇAMENTO.Nivel="Nível 2")+8*(ORÇAMENTO.Nivel="Nível 3")+16*(ORÇAMENTO.Nivel="Nível 4")+32*(ORÇAMENTO.Nivel="Serviço"),2),0,1,2,3,4,"S") -> S | B38: 2 | C38: S | D38: 0 | E38: 1 | F38: 3 | G38: 0 | H38: 0 | I38: =IF(AND($C38<=4,$C38<>0),0,IF(AND($C38="S",$W38>0),OFFSET(I38,-1,0)+1,OFFSET(I38,-1,0))) -> 0 | J38: 0 | K38: 0 | M38: Serviço | N38: Serviço | O38: - | P38: SINAPI | Q38: 93358 | R38: ESCAVAÇÃO MANUAL DE VALA COM PROFUNDIDADE MENOR OU IGUAL A 1,30 M. AF_03/2016 | S38: M3 | T38: 62 | W38: 0 | X38: Referência: AGETOP - 40101
A39: S | B39: 2 | C39: S | D39: 0 | E39: 1 | F39: 3 | G39: 0 | H39: 0 | I39: 0 | J39: 0 | K39: 0 | M39: Serviço | N39: Serviço | O39: - | P39: SINAPI | Q39: 96995 | R39: REATERRO MANUAL APILOADO COM SOQUETE. AF_10/2017 | S39: M3 | T39: 62 | W39: 0 | X39: Referência: AGETOP - 40902
A40: S | B40: 2 | C40: S | D40: 0 | E40: =IF($C40=1,OFFSET(E40,-1,0)+1,OFFSET(E40,-1,0)) -> 1 | F40: =IF($C40=1,0,IF($C40=2,OFFSET(F40,-1,0)+1,OFFSET(F40,-1,0))) -> 3 | G40: =IF(AND($C40<=2,$C40<>0),0,IF($C40=3,OFFSET(G40,-1,0)+1,OFFSET(G40,-1,0))) -> 0 | H40: =IF(AND($C40<=3,$C40<>0),0,IF($C40=4,OFFSET(H40,-1,0)+1,OFFSET(H40,-1,0))) -> 0 | I40: 0 | J40: 0 | K40: 0 | M40: Serviço | N40: Serviço | O40: - | P40: AGETOP | Q40: 41002 | R40: APILOAMENTO | S40: m2 | T40: 1550.38 | W40: 0
A41: 2 | B41: =IF(OR(C41="s",C41=0),OFFSET(B41,-1,0),C41) -> 2 | C41: =IF(OFFSET(C41,-1,0)="L",1,IF(OFFSET(C41,-1,0)=1,2,IF(OR(A41="s",A41=0),"S",IF(AND(OFFSET(C41,-1,0)=2,A41=4),3,IF(AND(OR(OFFSET(C41,-1,0)="s",OFFSET(C41,-1,0)=0),A41<>"s",A41>OFFSET(B41,-1,0)),OFFSET(B41,-1,0),A41))))) -> 2 | D41: =IF(OR(C41="S",C41=0),0,IF(ISERROR(K41),J41,SMALL(J41:K41,1))) -> 13 | E41: 1 | F41: 4 | G41: 0 | H41: 0 | I41: 0 | J41: 238 | K41: 13 | M41: Nível 2 | N41: Nível 2 | O41: - | P41: AGETOP | R41: FUNDAÇÕES E SONDAGENS | S41: - | W41: 0
A42: 3 | B42: 3 | C42: 3 | D42: 6 | E42: 1 | F42: 4 | G42: 1 | H42: 0 | I42: 0 | J42: 12 | K42: 6 | M42: Nível 3 | N42: Nível 3 | O42: - | P42: SINAPI | R42: SAPATAS | S42: - | W42: 0
A43: S | B43: 3 | C43: S | D43: 0 | E43: 1 | F43: 4 | G43: 1 | H43: 0 | I43: 0 | J43: 0 | K43: 0 | M43: Serviço | N43: Serviço | O43: - | P43: SINAPI | Q43: 96523 | R43: ESCAVAÇÃO MANUAL PARA BLOCO DE COROAMENTO OU SAPATA, COM PREVISÃO DE FÔRMA. AF_06/2017 | S43: M3 | T43: 2.85 | W43: 0 | X43: Referência: AGETOP - 50901
A44: S | B44: 3 | C44: S | D44: 0 | E44: 1 | F44: 4 | G44: 1 | H44: 0 | I44: 0 | J44: 0 | K44: 0 | M44: Serviço | N44: Serviço | O44: - | P44: SINAPI | Q44: 94965 | R44: CONCRETO FCK = 25MPA, TRAÇO 1:2,3:2,7 (CIMENTO/ AREIA MÉDIA/ BRITA 1) - PREPARO MECÂNICO COM BETONEIRA 400 L. AF_07/2016 | S44: M3 | T44: 2.85 | W44: 0 | X44: Referência: AGETOP - 51030
A45: S | B45: 3 | C45: S | D45: 0 | E45: 1 | F45: 4 | G45: 1 | H45: 0 | I45: 0 | J45: 0 | K45: 0 | M45: Serviço | N45: Serviço | O45: - | P45: SINAPI | Q45: 74157/4 | R45: LANCAMENTO/APLICACAO MANUAL DE CONCRETO EM FUNDACOES | S45: M3 | T45: 2.85 | W45: 0 | X45: Referência: AGETOP - 51026
A46: S | B46: 3 | C46: S | D46: 0 | E46: 1 | F46: 4 | G46: 1 | H46: 0 | I46: 0 | J46: 0 | K46: 0 | M46: Serviço | N46: Serviço | O46: - | P46: SINAPI | Q46: 96541 | R46: FABRICAÇÃO, MONTAGEM E DESMONTAGEM DE FÔRMA PARA SAPATA, EM CHAPA DE MADEIRA COMPENSADA RESINADA, E=17 MM, 4 UTILIZAÇÕES. AF_06/2017 | S46: M2 | T46: 13.05 | W46: 0 | X46: Referência: AGETOP - 51009
A47: S | B47: 3 | C47: S | D47: 0 | E47: 1 | F47: 4 | G47: 1 | H47: 0 | I47: 0 | J47: 0 | K47: 0 | M47: Serviço | N47: Serviço | O47: - | P47: SINAPI | Q47: 96544 | R47: ARMAÇÃO DE BLOCO, VIGA BALDRAME OU SAPATA UTILIZANDO AÇO CA-50 DE 6,3 MM - MONTAGEM. AF_06/2017 | S47: KG | T47: 78.57 | W47: 0 | X47: Referência: AGETOP - 52003
A48: 3 | B48: 3 | C48: 3 | D48: 6 | E48: 1 | F48: 4 | G48: 2 | H48: 0 | I48: 0 | J48: 6 | K48: 87 | M48: Nível 3 | N48: Nível 3 | O48: - | P48: SINAPI | R48: VIGAS BALDRAMES | S48: - | W48: 0
A49: S | B49: 3 | C49: S | D49: 0 | E49: 1 | F49: 4 | G49: 2 | H49: 0 | I49: 0 | J49: 0 | K49: 0 | M49: Serviço | N49: Serviço | O49: - | P49: SINAPI | Q49: 96527 | R49: ESCAVAÇÃO MANUAL DE VALA PARA VIGA BALDRAME, COM PREVISÃO DE FÔRMA. AF_06/2017 | S49: M3 | T49: 65.15 | W49: 0 | X49: Referência: AGETOP - 40101
A50: S | B50: 3 | C50: S | D50: 0 | E50: 1 | F50: 4 | G50: 2 | H50: 0 | I50: 0 | J50: 0 | K50: 0 | M50: Serviço | N50: Serviço | O50: - | P50: SINAPI | Q50: 94965 | R50: CONCRETO FCK = 25MPA, TRAÇO 1:2,3:2,7 (CIMENTO/ AREIA MÉDIA/ BRITA 1) - PREPARO MECÂNICO COM BETONEIRA 400 L. AF_07/2016 | S50: M3 | T50: 5.07 | W50: 0 | X50: Referência: AGETOP - 51030
A51: S | B51: 3 | C51: S | D51: 0 | E51: 1 | F51: 4 | G51: 2 | H51: 0 | I51: 0 | J51: =IF(OR($C51="S",$C51=0),0,MATCH(0,OFFSET($D51,1,$C51,ROW($C$279)-ROW($C51)),0)) -> 0 | K51: =IF(OR($C51="S",$C51=0),0,MATCH(OFFSET($D51,0,$C51)+1,OFFSET($D51,1,$C51,ROW($C$279)-ROW($C51)),0)) -> 0 | M51: Serviço | N51: Serviço | O51: - | P51: SINAPI | Q51: 74157/4 | R51: LANCAMENTO/APLICACAO MANUAL DE CONCRETO EM FUNDACOES | S51: M3 | T51: 5.07 | W51: 0 | X51: Referência: AGETOP - 51026
A52: S | B52: 3 | C52: S | D52: 0 | E52: 1 | F52: 4 | G52: 2 | H52: 0 | I52: 0 | J52: 0 | K52: 0 | M52: Serviço | N52: Serviço | O52: - | P52: SINAPI | Q52: 96545 | R52: ARMAÇÃO DE BLOCO, VIGA BALDRAME OU SAPATA UTILIZANDO AÇO CA-50 DE 8 MM - MONTAGEM. AF_06/2017 | S52: KG | T52: 114.48 | W52: 0 | X52: Referência: AGETOP - 52004
A53: S | B53: 3 | C53: S | D53: 0 | E53: 1 | F53: 4 | G53: 2 | H53: 0 | I53: 0 | J53: 0 | K53: 0 | M53: Serviço | N53: Serviço | O53: - | P53: SINAPI | Q53: 96543 | R53: ARMAÇÃO DE BLOCO, VIGA BALDRAME E SAPATA UTILIZANDO AÇO CA-60 DE 5 MM - MONTAGEM. AF_06/2017 | S53: KG | T53: 54.63 | W53: 0 | X53: Referência: AGETOP - 52014
A54: 2 | B54: 2 | C54: 2 | D54: 14 | E54: 1 | F54: 5 | G54: 0 | H54: 0 | I54: 0 | J54: 225 | K54: 14 | M54: Nível 2 | N54: Nível 2 | O54: - | P54: AGETOP | R54: ESTRUTURA | S54: - | W54: 0
A55: 3 | B55: 3 | C55: 3 | D55: 6 | E55: 1 | F55: 5 | G55: 1 | H55: 0 | I55: 0 | J55: 13 | K55: 6 | M55: Nível 3 | N55: Nível 3 | O55: - | P55: AGETOP | R55: PILARES | S55: - | W55: 0
A56: S | B56: 3 | C56: S | D56: 0 | E56: 1 | F56: 5 | G56: 1 | H56: 0 | I56: 0 | J56: 0 | K56: 0 | M56: Serviço | N56: Serviço | O56: - | P56: SINAPI | Q56: 92426 | R56: MONTAGEM E DESMONTAGEM DE FÔRMA DE PILARES RETANGULARES E ESTRUTURAS SIMILARES COM ÁREA MÉDIA DAS SEÇÕES MENOR OU IGUAL A 0,25 M², PÉ-DIREITO SIMPLES, EM CHAPA DE MADEIRA COMPENSADA RESINADA, 8 UTILIZAÇÕES. AF_12/2015 | S56: M2 | T56: 93.6 | W56: 0
A57: S | B57: 3 | C57: S | D57: 0 | E57: 1 | F57: 5 | G57: 1 | H57: 0 | I57: 0 | J57: 0 | K57: 0 | M57: Serviço | N57: Serviço | O57: - | P57: SINAPI | Q57: 94965 | R57: CONCRETO FCK = 25MPA, TRAÇO 1:2,3:2,7 (CIMENTO/ AREIA MÉDIA/ BRITA 1) - PREPARO MECÂNICO COM BETONEIRA 400 L. AF_07/2016 | S57: M3 | T57: 7.02 | W57: 0 | X57: Referência: AGETOP - 51030
A58: S | B58: 3 | C58: S | D58: 0 | E58: 1 | F58: 5 | G58: 1 | H58: 0 | I58: 0 | J58: 0 | K58: 0 | M58: Serviço | N58: Serviço | O58: - | P58: SINAPI | Q58: 92873 | R58: LANÇAMENTO COM USO DE BALDES, ADENSAMENTO E ACABAMENTO DE CONCRETO EM ESTRUTURAS. AF_12/2015 | S58: M3 | T58: 7.02 | W58: 0 | X58: Referência: AGETOP - 60801
A59: S | B59: 3 | C59: S | D59: 0 | E59: 1 | F59: 5 | G59: 1 | H59: 0 | I59: 0 | J59: 0 | K59: 0 | M59: Serviço | N59: Serviço | O59: - | P59: SINAPI | Q59: 92778 | R59: ARMAÇÃO DE PILAR OU VIGA DE UMA ESTRUTURA CONVENCIONAL DE CONCRETO ARMADO EM UMA EDIFICAÇÃO TÉRREA OU SOBRADO UTILIZANDO AÇO CA-50 DE 10,0 MM - MONTAGEM. AF_12/2015 | S59: KG | T59: 416.79 | W59: 0 | X59: Referência: AGETOP - 60305
A60: S | B60: 3 | C60: S | D60: 0 | E60: 1 | F60: 5 | G60: 1 | H60: 0 | I60: 0 | J60: 0 | K60: 0 | M60: Serviço | N60: Serviço | O60: - | P60: SINAPI | Q60: 92775 | R60: ARMAÇÃO DE PILAR OU VIGA DE UMA ESTRUTURA CONVENCIONAL DE CONCRETO ARMADO EM UMA EDIFICAÇÃO TÉRREA OU SOBRADO UTILIZANDO AÇO CA-60 DE 5,0 MM - MONTAGEM. AF_12/2015 | S60: KG | T60: 200.34 | W60: 0 | X60: Referência: AGETOP - 60314
A61: 3 | B61: 3 | C61: 3 | D61: 7 | E61: 1 | F61: 5 | G61: 2 | H61: 0 | I61: 0 | J61: 7 | K61: 74 | M61: Nível 3 | N61: Nível 3 | O61: - | R61: VIGAS DE COBERTURA | S61: - | W61: 0
A62: S | B62: 3 | C62: S | D62: 0 | E62: 1 | F62: 5 | G62: 2 | H62: 0 | I62: 0 | J62: 0 | K62: 0 | M62: Serviço | N62: Serviço | O62: - | P62: SINAPI | Q62: 92464 | R62: MONTAGEM E DESMONTAGEM DE FÔRMA DE VIGA, ESCORAMENTO METÁLICO, PÉ-DIREITO SIMPLES, EM CHAPA DE MADEIRA RESINADA, 8 UTILIZAÇÕES. AF_12/2015 | S62: M2 | T62: 60.7 | W62: 0 | X62: Referência: AGETOP - 60209
A63: S | B63: 3 | C63: S | D63: 0 | E63: 1 | F63: 5 | G63: 2 | H63: 0 | I63: 0 | J63: 0 | K63: 0 | M63: Serviço | N63: Serviço | O63: - | P63: SINAPI | Q63: 94965 | R63: CONCRETO FCK = 25MPA, TRAÇO 1:2,3:2,7 (CIMENTO/ AREIA MÉDIA/ BRITA 1) - PREPARO MECÂNICO COM BETONEIRA 400 L. AF_07/2016 | S63: M3 | T63: 4.81 | W63: 0 | X63: Referência: AGETOP - 51030
A64: S | B64: 3 | C64: S | D64: 0 | E64: 1 | F64: 5 | G64: 2 | H64: 0 | I64: 0 | J64: 0 | K64: 0 | M64: Serviço | N64: Serviço | O64: - | P64: SINAPI | Q64: 92873 | R64: LANÇAMENTO COM USO DE BALDES, ADENSAMENTO E ACABAMENTO DE CONCRETO EM ESTRUTURAS. AF_12/2015 | S64: M3 | T64: 4.81 | W64: 0 | X64: Referência: AGETOP - 60801
A65: =CHOOSE(1+LOG(1+2*(ORÇAMENTO.Nivel="Nível 1")+4*(ORÇAMENTO.Nivel="Nível 2")+8*(ORÇAMENTO.Nivel="Nível 3")+16*(ORÇAMENTO.Nivel="Nível 4")+32*(ORÇAMENTO.Nivel="Serviço"),2),0,1,2,3,4,"S") -> S | B65: 3 | C65: S | D65: 0 | E65: 1 | F65: 5 | G65: 2 | H65: 0 | I65: =IF(AND($C65<=4,$C65<>0),0,IF(AND($C65="S",$W65>0),OFFSET(I65,-1,0)+1,OFFSET(I65,-1,0))) -> 0 | J65: 0 | K65: 0 | M65: Serviço | N65: Serviço | O65: - | P65: SINAPI | Q65: 92777 | R65: ARMAÇÃO DE PILAR OU VIGA DE UMA ESTRUTURA CONVENCIONAL DE CONCRETO ARMADO EM UMA EDIFICAÇÃO TÉRREA OU SOBRADO UTILIZANDO AÇO CA-50 DE 8,0 MM - MONTAGEM. AF_12/2015 | S65: KG | T65: 107.28 | W65: 0 | X65: Referência: AGETOP - 60304
A66: S | B66: 3 | C66: S | D66: 0 | E66: 1 | F66: 5 | G66: 2 | H66: 0 | I66: 0 | J66: 0 | K66: 0 | M66: Serviço | N66: Serviço | O66: - | P66: SINAPI | Q66: 92778 | R66: ARMAÇÃO DE PILAR OU VIGA DE UMA ESTRUTURA CONVENCIONAL DE CONCRETO ARMADO EM UMA EDIFICAÇÃO TÉRREA OU SOBRADO UTILIZANDO AÇO CA-50 DE 10,0 MM - MONTAGEM. AF_12/2015 | S66: KG | T66: 19.53 | W66: 0 | X66: Referência: AGETOP - 60305
A67: S | B67: 3 | C67: S | D67: 0 | E67: =IF($C67=1,OFFSET(E67,-1,0)+1,OFFSET(E67,-1,0)) -> 1 | F67: =IF($C67=1,0,IF($C67=2,OFFSET(F67,-1,0)+1,OFFSET(F67,-1,0))) -> 5 | G67: =IF(AND($C67<=2,$C67<>0),0,IF($C67=3,OFFSET(G67,-1,0)+1,OFFSET(G67,-1,0))) -> 2 | H67: =IF(AND($C67<=3,$C67<>0),0,IF($C67=4,OFFSET(H67,-1,0)+1,OFFSET(H67,-1,0))) -> 0 | I67: 0 | J67: 0 | K67: 0 | M67: Serviço | N67: Serviço | O67: - | P67: SINAPI | Q67: 92775 | R67: ARMAÇÃO DE PILAR OU VIGA DE UMA ESTRUTURA CONVENCIONAL DE CONCRETO ARMADO EM UMA EDIFICAÇÃO TÉRREA OU SOBRADO UTILIZANDO AÇO CA-60 DE 5,0 MM - MONTAGEM. AF_12/2015 | S67: KG | T67: 49.77 | W67: 0 | X67: Referência: AGETOP - 60314
A68: 2 | B68: =IF(OR(C68="s",C68=0),OFFSET(B68,-1,0),C68) -> 2 | C68: =IF(OFFSET(C68,-1,0)="L",1,IF(OFFSET(C68,-1,0)=1,2,IF(OR(A68="s",A68=0),"S",IF(AND(OFFSET(C68,-1,0)=2,A68=4),3,IF(AND(OR(OFFSET(C68,-1,0)="s",OFFSET(C68,-1,0)=0),A68<>"s",A68>OFFSET(B68,-1,0)),OFFSET(B68,-1,0),A68))))) -> 2 | D68: =IF(OR(C68="S",C68=0),0,IF(ISERROR(K68),J68,SMALL(J68:K68,1))) -> 90 | E68: 1 | F68: 6 | G68: 0 | H68: 0 | I68: 0 | J68: 211 | K68: 90 | M68: Nível 2 | N68: Nível 2 | O68: - | R68: INSTALAÇÕES ELÉTRICAS | S68: - | W68: 0
A69: 3 | B69: 3 | C69: 3 | D69: 59 | E69: 1 | F69: 6 | G69: 1 | H69: 0 | I69: 0 | J69: 89 | K69: 59 | M69: Nível 3 | N69: Nível 3 | O69: - | P69: SINAPI | R69: SUBESTAÇÃO - 150 KVA | S69: - | W69: 0
A70: S | B70: 3 | C70: S | D70: 0 | E70: 1 | F70: 6 | G70: 1 | H70: 0 | I70: 0 | J70: 0 | K70: 0 | M70: Serviço | N70: Serviço | O70: - | P70: SINAPI | Q70: 73767/2 | R70: ALCA PRE-FORMADA DISTRIBUIÇÃO EM ACO RECOBERTO COM ALUMINIO PARA CABO 25MM2, ENCAPADO. FORNECIMENTO E INSTALAÇÃO. | S70: UN | T70: 1 | W70: 0
A71: S | B71: 3 | C71: S | D71: 0 | E71: 1 | F71: 6 | G71: 1 | H71: 0 | I71: 0 | J71: 0 | K71: 0 | M71: Serviço | N71: Serviço | O71: - | P71: AGETOP | Q71: 70252 | R71: ARRUELA LISA D=5/16" | S71: Un | T71: 8 | W71: 0
A72: S | B72: 3 | C72: S | D72: 0 | E72: 1 | F72: 6 | G72: 1 | H72: 0 | I72: 0 | J72: 0 | K72: 0 | M72: Serviço | N72: Serviço | O72: - | P72: AGETOP | Q72: 70268 | R72: BARRA DE COBRE 2" X 3/16" (2,0865 KG/M) | S72: m | T72: 1.5 | W72: 0
A73: S | B73: 3 | C73: S | D73: 0 | E73: 1 | F73: 6 | G73: 1 | H73: 0 | I73: 0 | J73: 0 | K73: 0 | M73: Serviço | N73: Serviço | O73: - | P73: SINAPI | Q73: 91178 | R73: FIXAÇÃO DE TUBOS HORIZONTAIS DE PPR DIÂMETROS MAIORES QUE 75 MM COM ABRAÇADEIRA METÁLICA RÍGIDA TIPO D 3" , FIXADA DIRETAMENTE NA LAJE. AF_05/2015 | S73: M | T73: 6 | W73: 0
A74: S | B74: 3 | C74: S | D74: 0 | E74: 1 | F74: 6 | G74: 1 | H74: 0 | I74: 0 | J74: 0 | K74: 0 | M74: Serviço | N74: Serviço | O74: - | P74: AGETOP | Q74: 70386 | R74: BRAÇO C AÇO GALVANIZADO , CONFORME NTD-17 | S74: un | T74: 1 | W74: 0
A75: S | B75: 3 | C75: S | D75: 0 | E75: 1 | F75: 6 | G75: 1 | H75: 0 | I75: 0 | J75: 0 | K75: 0 | M75: Serviço | N75: Serviço | O75: - | P75: AGETOP | Q75: 70422 | R75: BUCHA E ARRUELA METALICA DIAM. 1" | S75: PR | T75: 2 | W75: 0
A76: S | B76: 3 | C76: S | D76: 0 | E76: 1 | F76: 6 | G76: 1 | H76: 0 | I76: 0 | J76: 0 | K76: 0 | M76: Serviço | N76: Serviço | O76: - | P76: AGETOP | Q76: 70428 | R76: BUCHA E ARRUELA METALICA DIAM. 4" | S76: PR | T76: 1 | W76: 0
A77: S | B77: 3 | C77: S | D77: 0 | E77: 1 | F77: 6 | G77: 1 | H77: 0 | I77: 0 | J77: 0 | K77: 0 | M77: Serviço | N77: Serviço | O77: - | P77: SINAPI | Q77: 92980 | R77: CABO DE COBRE FLEXÍVEL ISOLADO, 10 MM², ANTI-CHAMA 0,6/1,0 KV, PARA DISTRIBUIÇÃO - FORNECIMENTO E INSTALAÇÃO. AF_12/2015 | S77: M | T77: 5 | W77: 0 | X77: Referência: AGETOP - 70509
A78: S | B78: 3 | C78: S | D78: 0 | E78: 1 | F78: 6 | G78: 1 | H78: 0 | I78: 0 | J78: 0 | K78: 0 | M78: Serviço | N78: Serviço | O78: - | P78: AGETOP | Q78: 70696 | R78: CAIXA METÁLICA PARA PROTEÇÃO GERAL 820X750X266MM DE 250A A 350A | S78: Un | T78: 1 | W78: 0
A79: S | B79: 3 | C79: S | D79: 0 | E79: 1 | F79: 6 | G79: 1 | H79: 0 | I79: 0 | J79: 0 | K79: 0 | M79: Serviço | N79: Serviço | O79: - | P79: AGETOP | Q79: 70697 | R79: CAIXA METÁLICA PARA T.C. 820X750X266MM - 250 A 350A | S79: Un | T79: 1 | W79: 0
A80: S | B80: 3 | C80: S | D80: 0 | E80: 1 | F80: 6 | G80: 1 | H80: 0 | I80: 0 | J80: 0 | K80: 0 | M80: Serviço | N80: Serviço | O80: - | P80: SINAPI | Q80: 97893 | R80: CAIXA ENTERRADA ELÉTRICA RETANGULAR, EM ALVENARIA COM BLOCOS DE CONCRETO, FUNDO COM BRITA, DIMENSÕES INTERNAS: 0,8X0,8X0,6 M. AF_05/2018 | S80: UN | T80: 1 | W80: 0
A81: S | B81: 3 | C81: S | D81: 0 | E81: 1 | F81: 6 | G81: 1 | H81: 0 | I81: 0 | J81: 0 | K81: 0 | M81: Serviço | N81: Serviço | O81: - | P81: AGETOP | Q81: 70771 | R81: CANTONEIRA AUXILIAR PARA BRAÇO TIPO C | S81: un | T81: 1 | W81: 0
A82: S | B82: 3 | C82: S | D82: 0 | E82: 1 | F82: 6 | G82: 1 | H82: 0 | I82: 0 | J82: 0 | K82: 0 | M82: Serviço | N82: Serviço | O82: - | P82: AGETOP | Q82: 70920 | R82: CINTA DE ACO GALVANIZADO DIAM.190 MM | S82: Un | T82: 1 | W82: 0
A83: S | B83: 3 | C83: S | D83: 0 | E83: 1 | F83: 6 | G83: 1 | H83: 0 | I83: 0 | J83: =IF(OR($C83="S",$C83=0),0,MATCH(0,OFFSET($D83,1,$C83,ROW($C$279)-ROW($C83)),0)) -> 0 | K83: =IF(OR($C83="S",$C83=0),0,MATCH(OFFSET($D83,0,$C83)+1,OFFSET($D83,1,$C83,ROW($C$279)-ROW($C83)),0)) -> 0 | M83: Serviço | N83: Serviço | O83: - | P83: AGETOP | Q83: 70921 | R83: CINTA DE ACO GALVANIZADO DIAM.220 MM | S83: Un | T83: 2 | W83: 0
A84: S | B84: 3 | C84: S | D84: 0 | E84: 1 | F84: 6 | G84: 1 | H84: 0 | I84: 0 | J84: 0 | K84: 0 | M84: Serviço | N84: Serviço | O84: - | P84: AGETOP | Q84: 70922 | R84: CINTA DE ACO GALVANIZADO DIAM.230MM | S84: Un | T84: 2 | W84: 0
A85: S | B85: 3 | C85: S | D85: 0 | E85: 1 | F85: 6 | G85: 1 | H85: 0 | I85: 0 | J85: 0 | K85: 0 | M85: Serviço | N85: Serviço | O85: - | P85: AGETOP | Q85: 71016 | R85: CONECTOR DE COMPRESSÃO FORMATO H PARA CABO 25 A 70 MM2 | S85: un | T85: 4 | W85: 0
A86: S | B86: 3 | C86: S | D86: 0 | E86: 1 | F86: 6 | G86: 1 | H86: 0 | I86: 0 | J86: 0 | K86: 0 | M86: Serviço | N86: Serviço | O86: - | P86: AGETOP | Q86: 71020 | R86: CONECTOR PARAL. ALUM.EXTRUD.CA-CU-10,0D.10-2-1 PARAF. | S86: Un | T86: 6 | W86: 0
A87: S | B87: 3 | C87: S | D87: 0 | E87: 1 | F87: 6 | G87: 1 | H87: 0 | I87: 0 | J87: 0 | K87: 0 | M87: Serviço | N87: Serviço | O87: - | P87: SINAPI | Q87: 72272 | R87: CONECTOR PARAFUSO FENDIDO SPLIT-BOLT - PARA CABO DE 35MM2 - FORNECIMENTO E INSTALACAO | S87: UN | T87: 1 | W87: 0
A88: S | B88: 3 | C88: S | D88: 0 | E88: 1 | F88: 6 | G88: 1 | H88: 0 | I88: 0 | J88: 0 | K88: 0 | M88: Serviço | N88: Serviço | O88: - | P88: AGETOP | Q88: 71040 | R88: CONECTOR TIPO PARAFUSO FENDIDO 150 MM2 | S88: Un | T88: 4 | W88: 0
A89: S | B89: 3 | C89: S | D89: 0 | E89: 1 | F89: 6 | G89: 1 | H89: 0 | I89: 0 | J89: 0 | K89: 0 | M89: Serviço | N89: Serviço | O89: - | P89: AGETOP | Q89: 71142 | R89: CURVA DE 90 GRAUS DE PVC RIGIDO DIAM. 1" | S89: Un | T89: 1 | W89: 0
A90: S | B90: 3 | C90: S | D90: 0 | E90: 1 | F90: 6 | G90: 1 | H90: 0 | I90: 0 | J90: 0 | K90: 0 | M90: Serviço | N90: Serviço | O90: - | P90: SINAPI | Q90: 93026 | R90: CURVA 90 GRAUS PARA ELETRODUTO, PVC, ROSCÁVEL, DN 110 MM (4") - FORNECIMENTO E INSTALAÇÃO. AF_12/2015 | S90: UN | T90: 1 | W90: 0
A91: S | B91: 3 | C91: S | D91: 0 | E91: 1 | F91: 6 | G91: 1 | H91: 0 | I91: 0 | J91: 0 | K91: 0 | M91: Serviço | N91: Serviço | O91: - | P91: AGETOP | Q91: 71184 | R91: DISPOSITIVO DE PROTEÇÃO CONTRA SURTOS (D.P.S.) 275V DE 8 A 40KA | S91: Un | T91: 3 | W91: 0
A92: S | B92: 3 | C92: S | D92: 0 | E92: 1 | F92: 6 | G92: 1 | H92: 0 | I92: 0 | J92: 0 | K92: 0 | M92: Serviço | N92: Serviço | O92: - | P92: SINAPI | Q92: 74130/7 | R92: DISJUNTOR TERMOMAGNETICO TRIPOLAR EM CAIXA MOLDADA 250A 600V, FORNECIMENTO E INSTALACAO | S92: UN | T92: 1 | W92: 0
A93: S | B93: 3 | C93: S | D93: 0 | E93: 1 | F93: 6 | G93: 1 | H93: 0 | I93: 0 | J93: 0 | K93: 0 | M93: Serviço | N93: Serviço | O93: - | P93: AGETOP | Q93: 71202 | R93: ELETRODUTO DE PVC RIGIDO DIAMETRO 1" | S93: M | T93: 3 | W93: 0
A94: S | B94: 3 | C94: S | D94: 0 | E94: 1 | F94: 6 | G94: 1 | H94: 0 | I94: 0 | J94: 0 | K94: 0 | M94: Serviço | N94: Serviço | O94: - | P94: SINAPI | Q94: 93012 | R94: ELETRODUTO RÍGIDO ROSCÁVEL, PVC, DN 110 MM (4") - FORNECIMENTO E INSTALAÇÃO. AF_12/2015 | S94: M | T94: 3 | W94: 0
A95: S | B95: 3 | C95: S | D95: 0 | E95: 1 | F95: 6 | G95: 1 | H95: 0 | I95: 0 | J95: 0 | K95: 0 | M95: Serviço | N95: Serviço | O95: - | P95: AGETOP | Q95: 71218 | R95: ELETRODUTO EM AÇO GALVANIZADO A FOGO DIÂMETRO 4" - PESADO | S95: M | T95: 7 | W95: 0
A96: S | B96: 3 | C96: S | D96: 0 | E96: 1 | F96: 6 | G96: 1 | H96: 0 | I96: 0 | J96: 0 | K96: 0 | M96: Serviço | N96: Serviço | O96: - | P96: AGETOP | Q96: 71270 | R96: ELO FUSIVEL 8 K - 15 KV | S96: Un | T96: 3 | W96: 0
A97: S | B97: 3 | C97: S | D97: 0 | E97: 1 | F97: 6 | G97: 1 | H97: 0 | I97: 0 | J97: 0 | K97: 0 | M97: Serviço | N97: Serviço | O97: - | P97: AGETOP | Q97: 71321 | R97: FITA DE AUTO FUSAO, ROLO E 10,00 MM | S97: Un | T97: 5 | W97: 0
A98: S | B98: 3 | C98: S | D98: 0 | E98: 1 | F98: 6 | G98: 1 | H98: 0 | I98: 0 | J98: 0 | K98: 0 | M98: Serviço | N98: Serviço | O98: - | P98: AGETOP | Q98: 71365 | R98: GRAMPO DE ANCORAGEM POLIMÉRICO | S98: un | T98: 3 | W98: 0
A99: S | B99: 3 | C99: S | D99: 0 | E99: 1 | F99: 6 | G99: 1 | H99: 0 | I99: 0 | J99: 0 | K99: 0 | M99: Serviço | N99: Serviço | O99: - | P99: AGETOP | Q99: 71381 | R99: HASTE REV.COBRE(COPPERWELD) 5/8" X 3,00 M C/CONECTOR | S99: Un | T99: 4 | W99: 0
A100: S | B100: 3 | C100: S | D100: 0 | E100: 1 | F100: 6 | G100: 1 | H100: 0 | I100: 0 | J100: 0 | K100: 0 | M100: Serviço | N100: Serviço | O100: - | P100: AGETOP | Q100: 71463 | R100: ISOLADOR EPOXI 50X40 (BUJAO) | S100: Un | T100: 2 | W100: 0
A101: S | B101: 3 | C101: S | D101: 0 | E101: 1 | F101: 6 | G101: 1 | H101: 0 | I101: 0 | J101: 0 | K101: 0 | M101: Serviço | N101: Serviço | O101: - | P101: AGETOP | Q101: 71476 | R101: ISOLADOR DE ANCORAGEM POLIMÉRICO 15KV | S101: un | T101: 1 | W101: 0
A102: S | B102: 3 | C102: S | D102: 0 | E102: 1 | F102: 6 | G102: 1 | H102: 0 | I102: 0 | J102: 0 | K102: 0 | M102: Serviço | N102: Serviço | O102: - | P102: AGETOP | Q102: 71510 | R102: LACO PREFORMADO DE DISTRIBUICAO | S102: Un | T102: 1 | W102: 0
A103: S | B103: 3 | C103: S | D103: 0 | E103: 1 | F103: 6 | G103: 1 | H103: 0 | I103: 0 | J103: 0 | K103: 0 | M103: Serviço | N103: Serviço | O103: - | P103: AGETOP | Q103: 71742 | R103: LUVA PVC ROSQUEAVEL DIAMETRO 1" | S103: Un | T103: 1 | W103: 0
A104: S | B104: 3 | C104: S | D104: 0 | E104: 1 | F104: 6 | G104: 1 | H104: 0 | I104: 0 | J104: 0 | K104: 0 | M104: Serviço | N104: Serviço | O104: - | P104: SINAPI | Q104: 93017 | R104: LUVA PARA ELETRODUTO, PVC, ROSCÁVEL, DN 110 MM (4") - FORNECIMENTO E INSTALAÇÃO. AF_12/2015 | S104: UN | T104: 1 | W104: 0 | X104: Referência: AGETOP - 71748
A105: S | B105: 3 | C105: S | D105: 0 | E105: 1 | F105: 6 | G105: 1 | H105: 0 | I105: 0 | J105: 0 | K105: 0 | M105: Serviço | N105: Serviço | O105: - | P105: SINAPI | Q105: 72619 | R105: LUVA DE ACO GALVANIZADO 4" - FORNECIMENTO E INSTALACAO | S105: UN | T105: 2 | W105: 0
A106: S | B106: 3 | C106: S | D106: 0 | E106: 1 | F106: 6 | G106: 1 | H106: 0 | I106: 0 | J106: 0 | K106: 0 | M106: Serviço | N106: Serviço | O106: - | P106: AGETOP | Q106: 71750 | R106: MANILHA-SAPATILHA EM AÇO GALVANIZADO | S106: un | T106: 1 | W106: 0
A107: S | B107: 3 | C107: S | D107: 0 | E107: 1 | F107: 6 | G107: 1 | H107: 0 | I107: 0 | J107: 0 | K107: 0 | M107: Serviço | N107: Serviço | O107: - | P107: AGETOP | Q107: 71761 | R107: MURETA MEDIÇÃO ALVEN. 1 1/2 V.(35CM) REBOC.C/PINTURA ACRÍL. E LAJE CONC. 20MPA MALHA 8.0MM CADA 10CM REVEST.C/ARGAMASSA 1:3 C/ IMPERMEABILIZANTE | S107: m2 | T107: 4 | W107: 0
A108: S | B108: 3 | C108: S | D108: 0 | E108: 1 | F108: 6 | G108: 1 | H108: 0 | I108: 0 | J108: 0 | K108: 0 | M108: Serviço | N108: Serviço | O108: - | P108: AGETOP | Q108: 71773 | R108: NIPLE METALICO Fo.Zo. DIAMETRO 1" | S108: Un | T108: 1 | W108: 0
A109: S | B109: 3 | C109: S | D109: 0 | E109: 1 | F109: 6 | G109: 1 | H109: 0 | I109: 0 | J109: 0 | K109: 0 | M109: Serviço | N109: Serviço | O109: - | P109: SINAPI | Q109: 72681 | R109: NIPLE DE ACO GALVANIZADO 4" - FORNECIMENTO E INSTALACAO | S109: UN | T109: 3 | W109: 0
A110: S | B110: 3 | C110: S | D110: 0 | E110: 1 | F110: 6 | G110: 1 | H110: 0 | I110: 0 | J110: 0 | K110: 0 | M110: Serviço | N110: Serviço | O110: - | P110: AGETOP | Q110: 71795 | R110: OLHAL PARA PARAFUSO | S110: un | T110: 3 | W110: 0
A111: S | B111: 3 | C111: S | D111: 0 | E111: 1 | F111: 6 | G111: 1 | H111: 0 | I111: 0 | J111: 0 | K111: 0 | M111: Serviço | N111: Serviço | O111: - | P111: AGETOP | Q111: 71835 | R111: PARAFUSO CABEÇA ABAULADA (FRANCES) M16 X 45 MM | S111: Un | T111: 3 | W111: 0
A112: S | B112: 3 | C112: S | D112: 0 | E112: 1 | F112: 6 | G112: 1 | H112: 0 | I112: 0 | J112: 0 | K112: 0 | M112: Serviço | N112: Serviço | O112: - | P112: AGETOP | Q112: 71841 | R112: PARAFUSO CABEÇA ABAULADA (FRANCES) M16 X 150 MM | S112: Un | T112: 3 | W112: 0
A113: S | B113: 3 | C113: S | D113: 0 | E113: 1 | F113: 6 | G113: 1 | H113: 0 | I113: 0 | J113: 0 | K113: 0 | M113: Serviço | N113: Serviço | O113: - | P113: AGETOP | Q113: 71833 | R113: PARA RAIOS DISTRIBUIDOR POLIMÉRICO ÓXIDO DE ZINCO S/CENTELHADOR C/ DESLIGAMENTO AUTOMÁTICO 15KV,10KA | S113: Un | T113: 3 | W113: 0
A114: S | B114: 3 | C114: S | D114: 0 | E114: 1 | F114: 6 | G114: 1 | H114: 0 | I114: 0 | J114: 0 | K114: 0 | M114: Serviço | N114: Serviço | O114: - | P114: AGETOP | Q114: 71997 | R114: POSTE - FUNDAÇÃO EM CONCRETO SIMPLES DA BASE DOS POSTES 11/600 PARA TRAFO ( DIAM. 1000MM) | S114: m | T114: 0.3 | W114: 0
A115: S | B115: 3 | C115: S | D115: 0 | E115: 1 | F115: 6 | G115: 1 | H115: 0 | I115: 0 | J115: =IF(OR($C115="S",$C115=0),0,MATCH(0,OFFSET($D115,1,$C115,ROW($C$279)-ROW($C115)),0)) -> 0 | K115: =IF(OR($C115="S",$C115=0),0,MATCH(OFFSET($D115,0,$C115)+1,OFFSET($D115,1,$C115,ROW($C$279)-ROW($C115)),0)) -> 0 | M115: Serviço | N115: Serviço | O115: - | P115: AGETOP | Q115: 72061 | R115: POSTE DE CONCRETO SC 11/600 - SEM FUNDAÇÃO/CONCRETO | S115: Un | T115: 1 | W115: 0
A116: S | B116: 3 | C116: S | D116: 0 | E116: 1 | F116: 6 | G116: 1 | H116: 0 | I116: 0 | J116: 0 | K116: 0 | M116: Serviço | N116: Serviço | O116: - | P116: AGETOP | Q116: 72080 | R116: POSTE/TRAFO - CAMINHÃO MUNCK 12 TON. (MÍNIMO 4H/DIA) | S116: H | T116: 4 | W116: 0
A117: S | B117: 3 | C117: S | D117: 0 | E117: 1 | F117: 6 | G117: 1 | H117: 0 | I117: 0 | J117: 0 | K117: 0 | M117: Serviço | N117: Serviço | O117: - | P117: AGETOP | Q117: 72329 | R117: SAPATILHA DE AÇO GALVANIZADO PARA POSTE COM TRANSFORMADOR | S117: un | T117: 3 | W117: 0
A118: S | B118: 3 | C118: S | D118: 0 | E118: 1 | F118: 6 | G118: 1 | H118: 0 | I118: 0 | J118: 0 | K118: 0 | M118: Serviço | N118: Serviço | O118: - | P118: SINAPI | Q118: 73624 | R118: SUPORTE PARA TRANSFORMADOR EM POSTE DE CONCRETO CIRCULAR | S118: UN | T118: 2 | W118: 0
A119: S | B119: 3 | C119: S | D119: 0 | E119: 1 | F119: 6 | G119: 1 | H119: 0 | I119: 0 | J119: 0 | K119: 0 | M119: Serviço | N119: Serviço | O119: - | P119: AGETOP | Q119: 72518 | R119: TERMINAL DE PRESSAO 10 MM2 | S119: Un | T119: 1 | W119: 0
A120: S | B120: 3 | C120: S | D120: 0 | E120: 1 | F120: 6 | G120: 1 | H120: 0 | I120: 0 | J120: 0 | K120: 0 | M120: Serviço | N120: Serviço | O120: - | P120: SINAPI | Q120: 73782/3 | R120: TERMINAL METALICO A PRESSAO PARA 1 CABO DE 95 MM2 - FORNECIMENTO E INSTALACAO | S120: UN | T120: 5 | W120: 0
A121: S | B121: 3 | C121: S | D121: 0 | E121: 1 | F121: 6 | G121: 1 | H121: 0 | I121: 0 | J121: 0 | K121: 0 | M121: Serviço | N121: Serviço | O121: - | P121: AGETOP | Q121: 72550 | R121: TERMINAL DE PRESSAO 150 MM2 | S121: Un | T121: 2 | W121: 0
A122: S | B122: 3 | C122: S | D122: 0 | E122: 1 | F122: 6 | G122: 1 | H122: 0 | I122: 0 | J122: 0 | K122: 0 | M122: Serviço | N122: Serviço | O122: - | P122: SINAPI | Q122: 73857/3 | R122: TRANSFORMADOR DISTRIBUICAO 150KVA TRIFASICO 60HZ CLASSE 15KV IMERSO EM ÓLEO MINERAL FORNECIMENTO E INSTALACAO | S122: UN | T122: 1 | W122: 0
A123: S | B123: 3 | C123: S | D123: 0 | E123: 1 | F123: 6 | G123: 1 | H123: 0 | I123: 0 | J123: 0 | K123: 0 | M123: Serviço | N123: Serviço | O123: - | P123: SINAPI | Q123: 88543 | R123: ARMACAO SECUNDARIA OU REX COMPLETA PARA TRESLINHAS-FORNECIMENTO E INSTALACAO. | S123: UN | T123: 1 | W123: 0
A124: S | B124: 3 | C124: S | D124: 0 | E124: 1 | F124: 6 | G124: 1 | H124: 0 | I124: 0 | J124: 0 | K124: 0 | M124: Serviço | N124: Serviço | O124: - | P124: COMPOSIÇÃO | Q124: COMP 046_SEE | R124: CAPUZ PARA PROTEÇÃO DOS PARA RAIOS | S124: UN | T124: 3 | W124: 0
A125: S | B125: 3 | C125: S | D125: 0 | E125: 1 | F125: 6 | G125: 1 | H125: 0 | I125: 0 | J125: 0 | K125: 0 | M125: Serviço | N125: Serviço | O125: - | P125: COMPOSIÇÃO | Q125: COMP 047_SEE | R125: CAPUZ DE PROTEÇÃO PARA BUCHA DE TRANSFORMADOR | S125: UN | T125: 3 | W125: 0
A126: S | B126: 3 | C126: S | D126: 0 | E126: 1 | F126: 6 | G126: 1 | H126: 0 | I126: 0 | J126: 0 | K126: 0 | M126: Serviço | N126: Serviço | O126: - | P126: COMPOSIÇÃO | Q126: COMP 048_SEE | R126: HASTE ROSQUEADA "TIRANTE" 3/8" | S126: M | T126: 0.5 | W126: 0
A127: S | B127: 3 | C127: S | D127: 0 | E127: 1 | F127: 6 | G127: 1 | H127: 0 | I127: 0 | J127: 0 | K127: 0 | M127: Serviço | N127: Serviço | O127: - | P127: COMPOSIÇÃO | Q127: COMP 049_SEE | R127: PORCA SEXTAVADA 3/8" | S127: UN | T127: 8 | W127: 0
A128: 3 | B128: 3 | C128: 3 | D128: 7 | E128: 1 | F128: 6 | G128: 2 | H128: 0 | I128: 0 | J128: 30 | K128: 7 | M128: Nível 3 | N128: Nível 3 | O128: - | R128: IMPLANTAÇÃO SUBESTAÇÃO (ALIMENTAÇÃO QDG) | S128: - | W128: 0
A129: S | B129: 3 | C129: S | D129: 0 | E129: 1 | F129: 6 | G129: 2 | H129: 0 | I129: 0 | J129: 0 | K129: 0 | M129: Serviço | N129: Serviço | O129: - | P129: SINAPI | Q129: 92996 | R129: CABO DE COBRE FLEXÍVEL ISOLADO, 150 MM², ANTI-CHAMA 0,6/1,0 KV, PARA DISTRIBUIÇÃO - FORNECIMENTO E INSTALAÇÃO. AF_12/2015 | S129: M | T129: 50 | W129: 0
A130: S | B130: 3 | C130: S | D130: 0 | E130: 1 | F130: 6 | G130: 2 | H130: 0 | I130: 0 | J130: 0 | K130: 0 | M130: Serviço | N130: Serviço | O130: - | P130: SINAPI | Q130: 92992 | R130: CABO DE COBRE FLEXÍVEL ISOLADO, 95 MM², ANTI-CHAMA 0,6/1,0 KV, PARA DISTRIBUIÇÃO - FORNECIMENTO E INSTALAÇÃO. AF_12/2015 | S130: M | T130: 10 | W130: 0
A131: S | B131: 3 | C131: S | D131: 0 | E131: 1 | F131: 6 | G131: 2 | H131: 0 | I131: 0 | J131: 0 | K131: 0 | M131: Serviço | N131: Serviço | O131: - | P131: SINAPI | Q131: 74130/7 | R131: DISJUNTOR TERMOMAGNETICO TRIPOLAR EM CAIXA MOLDADA 250A 600V, FORNECIMENTO E INSTALACAO | S131: UN | T131: 1 | W131: 0
A132: S | B132: 3 | C132: S | D132: 0 | E132: 1 | F132: 6 | G132: 2 | H132: 0 | I132: 0 | J132: 0 | K132: 0 | M132: Serviço | N132: Serviço | O132: - | P132: SINAPI | Q132: 93012 | R132: ELETRODUTO RÍGIDO ROSCÁVEL, PVC, DN 110 MM (4") - FORNECIMENTO E INSTALAÇÃO. AF_12/2015 | S132: M | T132: 10 | W132: 0
A133: S | B133: 3 | C133: S | D133: 0 | E133: 1 | F133: 6 | G133: 2 | H133: 0 | I133: 0 | J133: 0 | K133: 0 | M133: Serviço | N133: Serviço | O133: - | P133: SINAPI | Q133: 93026 | R133: CURVA 90 GRAUS PARA ELETRODUTO, PVC, ROSCÁVEL, DN 110 MM (4") - FORNECIMENTO E INSTALAÇÃO. AF_12/2015 | S133: UN | T133: 5 | W133: 0
A134: S | B134: 3 | C134: S | D134: 0 | E134: 1 | F134: 6 | G134: 2 | H134: 0 | I134: 0 | J134: 0 | K134: 0 | M134: Serviço | N134: Serviço | O134: - | P134: SINAPI | Q134: 97888 | R134: CAIXA ENTERRADA ELÉTRICA RETANGULAR, EM ALVENARIA COM TIJOLOS CERÂMICOS MACIÇOS, FUNDO COM BRITA, DIMENSÕES INTERNAS: 0,6X0,6X0,6 M. AF_05/2018 | S134: UN | T134: 1 | W134: 0
A135: 3 | B135: 3 | C135: 3 | D135: 11 | E135: 1 | F135: 6 | G135: 3 | H135: 0 | I135: 0 | J135: 23 | K135: 11 | M135: Nível 3 | N135: Nível 3 | O135: - | R135: IMPLANTAÇÃO QUADROS DE DISTRIBUIÇÃO | S135: - | W135: 0
A136: S | B136: 3 | C136: S | D136: 0 | E136: 1 | F136: 6 | G136: 3 | H136: 0 | I136: 0 | J136: 0 | K136: 0 | M136: Serviço | N136: Serviço | O136: - | P136: SINAPI | Q136: 92986 | R136: CABO DE COBRE FLEXÍVEL ISOLADO, 35 MM², ANTI-CHAMA 0,6/1,0 KV, PARA DISTRIBUIÇÃO - FORNECIMENTO E INSTALAÇÃO. AF_12/2015 | S136: M | T136: 800 | W136: 0 | X136: Referência: AGETOP - 70512
A137: S | B137: 3 | C137: S | D137: 0 | E137: 1 | F137: 6 | G137: 3 | H137: 0 | I137: 0 | J137: 0 | K137: 0 | M137: Serviço | N137: Serviço | O137: - | P137: SINAPI | Q137: 92984 | R137: CABO DE COBRE FLEXÍVEL ISOLADO, 25 MM², ANTI-CHAMA 0,6/1,0 KV, PARA DISTRIBUIÇÃO - FORNECIMENTO E INSTALAÇÃO. AF_12/2015 | S137: M | T137: 600 | W137: 0 | X137: Referência: AGETOP - 70511
A138: S | B138: 3 | C138: S | D138: 0 | E138: 1 | F138: 6 | G138: 3 | H138: 0 | I138: 0 | J138: 0 | K138: 0 | M138: Serviço | N138: Serviço | O138: - | P138: SINAPI | Q138: 92982 | R138: CABO DE COBRE FLEXÍVEL ISOLADO, 16 MM², ANTI-CHAMA 0,6/1,0 KV, PARA DISTRIBUIÇÃO - FORNECIMENTO E INSTALAÇÃO. AF_12/2015 | S138: M | T138: 100 | W138: 0 | X138: Referência: AGETOP - 70510
A139: S | B139: 3 | C139: S | D139: 0 | E139: 1 | F139: 6 | G139: 3 | H139: 0 | I139: 0 | J139: 0 | K139: 0 | M139: Serviço | N139: Serviço | O139: - | P139: SINAPI | Q139: 92979 | R139: CABO DE COBRE FLEXÍVEL ISOLADO, 10 MM², ANTI-CHAMA 450/750 V, PARA DISTRIBUIÇÃO - FORNECIMENTO E INSTALAÇÃO. AF_12/2015 | S139: M | T139: 25 | W139: 0
A140: S | B140: 3 | C140: S | D140: 0 | E140: 1 | F140: 6 | G140: 3 | H140: 0 | I140: 0 | J140: 0 | K140: 0 | M140: Serviço | N140: Serviço | O140: - | P140: SINAPI | Q140: 74130/5 | R140: DISJUNTOR TERMOMAGNETICO TRIPOLAR PADRAO NEMA (AMERICANO) 60 A 100A 240V, FORNECIMENTO E INSTALACAO | S140: UN | T140: 2 | W140: 0
A141: S | B141: 3 | C141: S | D141: 0 | E141: 1 | F141: 6 | G141: 3 | H141: 0 | I141: 0 | J141: 0 | K141: 0 | M141: Serviço | N141: Serviço | O141: - | P141: SINAPI | Q141: 93009 | R141: ELETRODUTO RÍGIDO ROSCÁVEL, PVC, DN 60 MM (2") - FORNECIMENTO E INSTALAÇÃO. AF_12/2015 | S141: M | T141: 110 | W141: 0
A142: S | B142: 3 | C142: S | D142: 0 | E142: 1 | F142: 6 | G142: 3 | H142: 0 | I142: 0 | J142: 0 | K142: 0 | M142: Serviço | N142: Serviço | O142: - | P142: SINAPI | Q142: 93012 | R142: ELETRODUTO RÍGIDO ROSCÁVEL, PVC, DN 110 MM (4") - FORNECIMENTO E INSTALAÇÃO. AF_12/2015 | S142: M | T142: 75 | W142: 0
A143: S | B143: 3 | C143: S | D143: 0 | E143: 1 | F143: 6 | G143: 3 | H143: 0 | I143: 0 | J143: 0 | K143: 0 | M143: Serviço | N143: Serviço | O143: - | P143: SINAPI | Q143: 93020 | R143: CURVA 90 GRAUS PARA ELETRODUTO, PVC, ROSCÁVEL, DN 60 MM (2") - FORNECIMENTO E INSTALAÇÃO. AF_12/2015 | S143: UN | T143: 10 | W143: 0
A144: S | B144: 3 | C144: S | D144: 0 | E144: 1 | F144: 6 | G144: 3 | H144: 0 | I144: 0 | J144: 0 | K144: 0 | M144: Serviço | N144: Serviço | O144: - | P144: SINAPI | Q144: 74130/5 | R144: DISJUNTOR TERMOMAGNETICO TRIPOLAR PADRAO NEMA (AMERICANO) 60 A 100A 240V, FORNECIMENTO E INSTALACAO | S144: UN | T144: 6 | W144: 0
A145: S | B145: 3 | C145: S | D145: 0 | E145: 1 | F145: 6 | G145: 3 | H145: 0 | I145: 0 | J145: 0 | K145: 0 | M145: Serviço | N145: Serviço | O145: - | P145: SINAPI | Q145: 97888 | R145: CAIXA ENTERRADA ELÉTRICA RETANGULAR, EM ALVENARIA COM TIJOLOS CERÂMICOS MACIÇOS, FUNDO COM BRITA, DIMENSÕES INTERNAS: 0,6X0,6X0,6 M. AF_05/2018 | S145: UN | T145: 7 | W145: 0
A146: 3 | B146: 3 | C146: 3 | D146: 6 | E146: 1 | F146: 6 | G146: 4 | H146: 0 | I146: 0 | J146: 12 | K146: 6 | M146: Nível 3 | N146: Nível 3 | O146: - | R146: INSTALAÇÕES ELÉTRICAS - INSTALAÇÃO AR CONDICONADOS | S146: - | W146: 0
A147: S | B147: 3 | C147: S | D147: 0 | E147: 1 | F147: 6 | G147: 4 | H147: 0 | I147: 0 | J147: =IF(OR($C147="S",$C147=0),0,MATCH(0,OFFSET($D147,1,$C147,ROW($C$279)-ROW($C147)),0)) -> 0 | K147: =IF(OR($C147="S",$C147=0),0,MATCH(OFFSET($D147,0,$C147)+1,OFFSET($D147,1,$C147,ROW($C$279)-ROW($C147)),0)) -> 0 | M147: Serviço | N147: Serviço | O147: - | P147: SINAPI | Q147: 91929 | R147: CABO DE COBRE FLEXÍVEL ISOLADO, 4 MM², ANTI-CHAMA 0,6/1,0 KV, PARA CIRCUITOS TERMINAIS - FORNECIMENTO E INSTALAÇÃO. AF_12/2015 | S147: M | T147: 1300 | W147: 0 | X147: Referência: AGETOP - 70582
A148: S | B148: 3 | C148: S | D148: 0 | E148: 1 | F148: 6 | G148: 4 | H148: 0 | I148: 0 | J148: 0 | K148: 0 | M148: Serviço | N148: Serviço | O148: - | P148: SINAPI | Q148: 91927 | R148: CABO DE COBRE FLEXÍVEL ISOLADO, 2,5 MM², ANTI-CHAMA 0,6/1,0 KV, PARA CIRCUITOS TERMINAIS - FORNECIMENTO E INSTALAÇÃO. AF_12/2015 | S148: M | T148: 200 | W148: 0 | X148: Referência: AGETOP - 70581
A149: S | B149: 3 | C149: S | D149: 0 | E149: 1 | F149: 6 | G149: 4 | H149: 0 | I149: 0 | J149: 0 | K149: 0 | M149: Serviço | N149: Serviço | O149: - | P149: SINAPI | Q149: 91872 | R149: ELETRODUTO RÍGIDO ROSCÁVEL, PVC, DN 32 MM (1"), PARA CIRCUITOS TERMINAIS, INSTALADO EM PAREDE - FORNECIMENTO E INSTALAÇÃO. AF_12/2015 | S149: M | T149: 400 | W149: 0 | X149: Referência: AGETOP - 71202
A150: S | B150: 3 | C150: S | D150: 0 | E150: 1 | F150: 6 | G150: 4 | H150: 0 | I150: 0 | J150: 0 | K150: 0 | M150: Serviço | N150: Serviço | O150: - | P150: SINAPI | Q150: 91893 | R150: CURVA 90 GRAUS PARA ELETRODUTO, PVC, ROSCÁVEL, DN 32 MM (1"), PARA CIRCUITOS TERMINAIS, INSTALADA EM FORRO - FORNECIMENTO E INSTALAÇÃO. AF_12/2015 | S150: UN | T150: 115 | W150: 0
A151: S | B151: 3 | C151: S | D151: 0 | E151: 1 | F151: 6 | G151: 4 | H151: 0 | I151: 0 | J151: 0 | K151: 0 | M151: Serviço | N151: Serviço | O151: - | P151: SINAPI | Q151: 93656 | R151: DISJUNTOR MONOPOLAR TIPO DIN, CORRENTE NOMINAL DE 25A - FORNECIMENTO E INSTALAÇÃO. AF_04/2016 | S151: UN | T151: 15 | W151: 0
A152: =CHOOSE(1+LOG(1+2*(ORÇAMENTO.Nivel="Nível 1")+4*(ORÇAMENTO.Nivel="Nível 2")+8*(ORÇAMENTO.Nivel="Nível 3")+16*(ORÇAMENTO.Nivel="Nível 4")+32*(ORÇAMENTO.Nivel="Serviço"),2),0,1,2,3,4,"S") -> 3 | B152: =IF(OR(C152="s",C152=0),OFFSET(B152,-1,0),C152) -> 3 | C152: =IF(OFFSET(C152,-1,0)="L",1,IF(OFFSET(C152,-1,0)=1,2,IF(OR(A152="s",A152=0),"S",IF(AND(OFFSET(C152,-1,0)=2,A152=4),3,IF(AND(OR(OFFSET(C152,-1,0)="s",OFFSET(C152,-1,0)=0),A152<>"s",A152>OFFSET(B152,-1,0)),OFFSET(B152,-1,0),A152))))) -> 3 | D152: =IF(OR(C152="S",C152=0),0,IF(ISERROR(K152),J152,SMALL(J152:K152,1))) -> 6 | E152: =IF($C152=1,OFFSET(E152,-1,0)+1,OFFSET(E152,-1,0)) -> 1 | F152: =IF($C152=1,0,IF($C152=2,OFFSET(F152,-1,0)+1,OFFSET(F152,-1,0))) -> 6 | G152: =IF(AND($C152<=2,$C152<>0),0,IF($C152=3,OFFSET(G152,-1,0)+1,OFFSET(G152,-1,0))) -> 5 | H152: =IF(AND($C152<=3,$C152<>0),0,IF($C152=4,OFFSET(H152,-1,0)+1,OFFSET(H152,-1,0))) -> 0 | I152: =IF(AND($C152<=4,$C152<>0),0,IF(AND($C152="S",$W152>0),OFFSET(I152,-1,0)+1,OFFSET(I152,-1,0))) -> 0 | J152: 6 | K152: 117 | M152: Nível 3 | N152: Nível 3 | O152: - | P152: SINAPI | R152: ILUMINAÇÃO EMERGÊNCIA - ALARME DE INCÊNDIO | S152: - | W152: 0
A153: S | B153: 3 | C153: S | D153: 0 | E153: 1 | F153: 6 | G153: 5 | H153: 0 | I153: 0 | J153: 0 | K153: 0 | M153: Serviço | N153: Serviço | O153: - | P153: SINAPI | Q153: 95749 | R153: ELETRODUTO DE AÇO GALVANIZADO, CLASSE LEVE, DN 20 MM (3/4), APARENTE, INSTALADO EM PAREDE - FORNECIMENTO E INSTALAÇÃO. AF_11/2016_P | S153: M | T153: 620 | W153: 0 | X153: Referência: AGETOP - 71211
A154: S | B154: 3 | C154: S | D154: 0 | E154: 1 | F154: 6 | G154: 5 | H154: 0 | I154: 0 | J154: 0 | K154: 0 | M154: Serviço | N154: Serviço | O154: - | P154: AGETOP | Q154: 71151 | R154: CURVA DE 90 GRAUS AÇO GALVANIZADO DIAM.3/4" | S154: Un | T154: 15 | W154: 0
A155: S | B155: 3 | C155: S | D155: 0 | E155: 1 | F155: 6 | G155: 5 | H155: 0 | I155: 0 | J155: 0 | K155: 0 | M155: Serviço | N155: Serviço | O155: - | P155: AGETOP | Q155: 71201 | R155: ELETRODUTO DE PVC RIGIDO DIAMETRO 3/4" | S155: M | T155: 75 | W155: 0
A156: S | B156: 3 | C156: S | D156: 0 | E156: 1 | F156: 6 | G156: 5 | H156: 0 | I156: 0 | J156: 0 | K156: 0 | M156: Serviço | N156: Serviço | O156: - | P156: AGETOP | Q156: 70561 | R156: CABO ISOLADO PP 3 X 2,5 MM2 | S156: M | T156: 550 | W156: 0
A157: S | B157: 3 | C157: S | D157: 0 | E157: 1 | F157: 6 | G157: 5 | H157: 0 | I157: 0 | J157: 0 | K157: 0 | M157: Serviço | N157: Serviço | O157: - | P157: SINAPI | Q157: 91927 | R157: CABO DE COBRE FLEXÍVEL ISOLADO, 2,5 MM², ANTI-CHAMA 0,6/1,0 KV, PARA CIRCUITOS TERMINAIS - FORNECIMENTO E INSTALAÇÃO. AF_12/2015 | S157: M | T157: 900 | W157: 0 | X157: Referência: AGETOP - 70581
A158: =CHOOSE(1+LOG(1+2*(ORÇAMENTO.Nivel="Nível 1")+4*(ORÇAMENTO.Nivel="Nível 2")+8*(ORÇAMENTO.Nivel="Nível 3")+16*(ORÇAMENTO.Nivel="Nível 4")+32*(ORÇAMENTO.Nivel="Serviço"),2),0,1,2,3,4,"S") -> 2 | B158: =IF(OR(C158="s",C158=0),OFFSET(B158,-1,0),C158) -> 2 | C158: =IF(OFFSET(C158,-1,0)="L",1,IF(OFFSET(C158,-1,0)=1,2,IF(OR(A158="s",A158=0),"S",IF(AND(OFFSET(C158,-1,0)=2,A158=4),3,IF(AND(OR(OFFSET(C158,-1,0)="s",OFFSET(C158,-1,0)=0),A158<>"s",A158>OFFSET(B158,-1,0)),OFFSET(B158,-1,0),A158))))) -> 2 | D158: =IF(OR(C158="S",C158=0),0,IF(ISERROR(K158),J158,SMALL(J158:K158,1))) -> 58 | E158: =IF($C158=1,OFFSET(E158,-1,0)+1,OFFSET(E158,-1,0)) -> 1 | F158: =IF($C158=1,0,IF($C158=2,OFFSET(F158,-1,0)+1,OFFSET(F158,-1,0))) -> 7 | G158: =IF(AND($C158<=2,$C158<>0),0,IF($C158=3,OFFSET(G158,-1,0)+1,OFFSET(G158,-1,0))) -> 0 | H158: =IF(AND($C158<=3,$C158<>0),0,IF($C158=4,OFFSET(H158,-1,0)+1,OFFSET(H158,-1,0))) -> 0 | I158: =IF(AND($C158<=4,$C158<>0),0,IF(AND($C158="S",$W158>0),OFFSET(I158,-1,0)+1,OFFSET(I158,-1,0))) -> 0 | J158: 121 | K158: 58 | M158: Nível 2 | N158: Nível 2 | O158: - | P158: AGETOP | R158: INSTALAÇÕES HIDROSSANITÁRIAS | S158: - | W158: 0
A159: 3 | B159: 3 | C159: 3 | D159: 5 | E159: 1 | F159: 7 | G159: 1 | H159: 0 | I159: 0 | J159: 57 | K159: 5 | M159: Nível 3 | N159: Nível 3 | O159: - | P159: SINAPI | R159: TANQUES / TORNEIRAS | S159: - | W159: 0
A160: S | B160: 3 | C160: S | D160: 0 | E160: 1 | F160: 7 | G160: 1 | H160: 0 | I160: 0 | J160: 0 | K160: 0 | M160: Serviço | N160: Serviço | O160: - | P160: AGETOP | Q160: 80693 | R160: TANQUE (PANELAO) INOX 60 X 70 X 40 CM CH.18 | S160: Un | T160: 1 | W160: 0
A161: S | B161: 3 | C161: S | D161: 0 | E161: 1 | F161: 7 | G161: 1 | H161: 0 | I161: 0 | J161: 0 | K161: 0 | M161: Serviço | N161: Serviço | O161: - | P161: AGETOP | Q161: 80819 | R161: SIFÃO METÁLICO PARA TANQUE DE 1 1/4" X 1 1/2" | S161: un | T161: 1 | W161: 0
A162: S | B162: 3 | C162: S | D162: 0 | E162: 1 | F162: 7 | G162: 1 | H162: 0 | I162: 0 | J162: 0 | K162: 0 | M162: Serviço | N162: Serviço | O162: - | P162: SINAPI | Q162: 86877 | R162: VÁLVULA EM METAL CROMADO 1.1/2" X 1.1/2" PARA TANQUE OU LAVATÓRIO, COM OU SEM LADRÃO - FORNECIMENTO E INSTALAÇÃO. AF_12/2013 | S162: UN | T162: 1 | W162: 0
A163: S | B163: 3 | C163: S | D163: 0 | E163: 1 | F163: 7 | G163: 1 | H163: 0 | I163: 0 | J163: 0 | K163: 0 | M163: Serviço | N163: Serviço | O163: - | P163: AGETOP | Q163: 80660 | R163: TORNEIRA DE PAREDE PARA PIA OU BEBEDOURO DIÂMETRO DE 1/2" E 3/4" | S163: Un | T163: 1 | W163: 0
A164: 3 | B164: 3 | C164: 3 | D164: 6 | E164: 1 | F164: 7 | G164: 2 | H164: 0 | I164: 0 | J164: 52 | K164: 6 | M164: Nível 3 | N164: Nível 3 | O164: - | P164: SINAPI | R164: VASO SANITÁRIO | S164: - | W164: 0
A165: S | B165: 3 | C165: S | D165: 0 | E165: 1 | F165: 7 | G165: 2 | H165: 0 | I165: 0 | J165: 0 | K165: 0 | M165: Serviço | N165: Serviço | O165: - | P165: SINAPI | Q165: 95470 | R165: VASO SANITARIO SIFONADO CONVENCIONAL COM LOUÇA BRANCA, INCLUSO CONJUNTO DE LIGAÇÃO PARA BACIA SANITÁRIA AJUSTÁVEL - FORNECIMENTO E INSTALAÇÃO. AF_10/2016 | S165: UN | T165: 2 | W165: 0
A166: S | B166: 3 | C166: S | D166: 0 | E166: 1 | F166: 7 | G166: 2 | H166: 0 | I166: 0 | J166: 0 | K166: 0 | M166: Serviço | N166: Serviço | O166: - | P166: AGETOP | Q166: 80517 | R166: VÁLVULA DE DESCARGA DUPLO ACIONAMENTO COM ACABAMENTO CROMADO ANTIVANDALISMO | S166: Un | T166: 2 | W166: 0
A167: S | B167: 3 | C167: S | D167: 0 | E167: 1 | F167: 7 | G167: 2 | H167: 0 | I167: 0 | J167: 0 | K167: 0 | M167: Serviço | N167: Serviço | O167: - | P167: AGETOP | Q167: 80510 | R167: ANEL DE VEDAÇÃO PARA VASO SANITÁRIO | S167: Un | T167: 2 | W167: 0
A168: S | B168: 3 | C168: S | D168: 0 | E168: 1 | F168: 7 | G168: 2 | H168: 0 | I168: 0 | J168: 0 | K168: 0 | M168: Serviço | N168: Serviço | O168: - | P168: AGETOP | Q168: 80520 | R168: CONJUNTO DE FIXACAO P/VASO SANITARIO (PAR) | S168: CJ | T168: 2 | W168: 0
A169: S | B169: 3 | C169: S | D169: 0 | E169: 1 | F169: 7 | G169: 2 | H169: 0 | I169: 0 | J169: 0 | K169: 0 | M169: Serviço | N169: Serviço | O169: - | P169: AGETOP | Q169: 80526 | R169: ASSENTO EM POLIPROPILENO COM SISTEMA DE FECHAMENTO SUAVE PARA VASO SANITÁRIO | S169: Un | T169: 2 | W169: 0
A170: 3 | B170: 3 | C170: 3 | D170: 7 | E170: 1 | F170: 7 | G170: 3 | H170: 0 | I170: 0 | J170: 46 | K170: 7 | M170: Nível 3 | N170: Nível 3 | O170: - | P170: SINAPI | R170: LAVATÓRIO | S170: - | W170: 0
A171: S | B171: 3 | C171: S | D171: 0 | E171: 1 | F171: 7 | G171: 3 | H171: 0 | I171: 0 | J171: 0 | K171: 0 | M171: Serviço | N171: Serviço | O171: - | P171: SINAPI | Q171: 86903 | R171: LAVATÓRIO LOUÇA BRANCA COM COLUNA, 45 X 55CM OU EQUIVALENTE, PADRÃO MÉDIO - FORNECIMENTO E INSTALAÇÃO. AF_12/2013 | S171: UN | T171: 2 | W171: 0 | X171: Referência: AGETOP - 80541
A172: S | B172: 3 | C172: S | D172: 0 | E172: 1 | F172: 7 | G172: 3 | H172: 0 | I172: 0 | J172: 0 | K172: 0 | M172: Serviço | N172: Serviço | O172: - | P172: AGETOP | Q172: 80550 | R172: FIXACAO P/LAVATORIO (PAR) | S172: PAR | T172: 2 | W172: 0
A173: S | B173: 3 | C173: S | D173: 0 | E173: 1 | F173: 7 | G173: 3 | H173: 0 | I173: 0 | J173: 0 | K173: 0 | M173: Serviço | N173: Serviço | O173: - | P173: AGETOP | Q173: 80555 | R173: LIGAÇÃO FLEXÍVEL METÁLICA DIAM.1/2"(ENGATE) | S173: Un | T173: 2 | W173: 0
A174: S | B174: 3 | C174: S | D174: 0 | E174: 1 | F174: 7 | G174: 3 | H174: 0 | I174: 0 | J174: 0 | K174: 0 | M174: Serviço | N174: Serviço | O174: - | P174: SINAPI | Q174: 86883 | R174: SIFÃO DO TIPO FLEXÍVEL EM PVC 1 X 1.1/2 - FORNECIMENTO E INSTALAÇÃO. AF_12/2013 | S174: UN | T174: 2 | W174: 0
A175: S | B175: 3 | C175: S | D175: 0 | E175: 1 | F175: 7 | G175: 3 | H175: 0 | I175: 0 | J175: 0 | K175: 0 | M175: Serviço | N175: Serviço | O175: - | P175: SINAPI | Q175: 86915 | R175: TORNEIRA CROMADA DE MESA, 1/2" OU 3/4", PARA LAVATÓRIO, PADRÃO MÉDIO - FORNECIMENTO E INSTALAÇÃO. AF_12/2013 | S175: UN | T175: 2 | W175: 0 | X175: Referência: AGETOP - 80570
A176: S | B176: 3 | C176: S | D176: 0 | E176: 1 | F176: 7 | G176: 3 | H176: 0 | I176: 0 | J176: 0 | K176: 0 | M176: Serviço | N176: Serviço | O176: - | P176: SINAPI | Q176: 86877 | R176: VÁLVULA EM METAL CROMADO 1.1/2" X 1.1/2" PARA TANQUE OU LAVATÓRIO, COM OU SEM LADRÃO - FORNECIMENTO E INSTALAÇÃO. AF_12/2013 | S176: UN | T176: 2 | W176: 0
A177: 3 | B177: 3 | C177: 3 | D177: 39 | E177: 1 | F177: 7 | G177: 4 | H177: 0 | I177: 0 | J177: 39 | K177: 90 | M177: Nível 3 | N177: Nível 3 | O177: - | P177: SINAPI | R177: COMBATE INCÊNDIO | S177: - | W177: 0
A178: S | B178: 3 | C178: S | D178: 0 | E178: 1 | F178: 7 | G178: 4 | H178: 0 | I178: 0 | J178: 0 | K178: 0 | M178: Serviço | N178: Serviço | O178: - | P178: COMPOSIÇÃO | Q178: COMP 557_SEE | R178: BOMBA THSI-18 10,0 CV TRIFÁSICA | S178: UN | T178: 1 | W178: 0
A179: S | B179: 3 | C179: S | D179: 0 | E179: 1 | F179: 7 | G179: 4 | H179: 0 | I179: 0 | J179: =IF(OR($C179="S",$C179=0),0,MATCH(0,OFFSET($D179,1,$C179,ROW($C$279)-ROW($C179)),0)) -> 0 | K179: =IF(OR($C179="S",$C179=0),0,MATCH(OFFSET($D179,0,$C179)+1,OFFSET($D179,1,$C179,ROW($C$279)-ROW($C179)),0)) -> 0 | M179: Serviço | N179: Serviço | O179: - | P179: AGETOP | Q179: 72338 | R179: SIRENE METALICA ALCANCE 500 M | S179: Un | T179: 2 | W179: 0
A180: S | B180: 3 | C180: S | D180: 0 | E180: 1 | F180: 7 | G180: 4 | H180: 0 | I180: 0 | J180: 0 | K180: 0 | M180: Serviço | N180: Serviço | O180: - | P180: AGETOP | Q180: 81883 | R180: RES.METALICO TAÇA AÇO PATINÁVEL-V=20M3-COL.SEC.H=6M+FUNDAÇÃO+LOGOTIPO | S180: un | T180: 1 | W180: 0
A181: S | B181: 3 | C181: S | D181: 0 | E181: 1 | F181: 7 | G181: 4 | H181: 0 | I181: 0 | J181: 0 | K181: 0 | M181: Serviço | N181: Serviço | O181: - | P181: AGETOP | Q181: 80910 | R181: REGISTRO DE GAVETA BRUTO DIAMETRO 2.1/2" | S181: Un | T181: 2 | W181: 0
A182: S | B182: 3 | C182: S | D182: 0 | E182: 1 | F182: 7 | G182: 4 | H182: 0 | I182: 0 | J182: 0 | K182: 0 | M182: Serviço | N182: Serviço | O182: - | P182: AGETOP | Q182: 82379 | R182: TUBO FERRO GALVANIZADO DIAM.2.1/2" | S182: m | T182: 375 | W182: 0
A183: S | B183: 3 | C183: S | D183: 0 | E183: 1 | F183: 7 | G183: 4 | H183: 0 | I183: 0 | J183: 0 | K183: 0 | M183: Serviço | N183: Serviço | O183: - | P183: AGETOP | Q183: 85003 | R183: EXTINTOR PO QUIMICO SECO (6 KG) - CAPACIDADE EXTINTORA 20 BC | S183: Un | T183: 1 | W183: 0
A184: S | B184: 3 | C184: S | D184: 0 | E184: 1 | F184: 7 | G184: 4 | H184: 0 | I184: 0 | J184: 0 | K184: 0 | M184: Serviço | N184: Serviço | O184: - | P184: AGETOP | Q184: 85006 | R184: EXTINTOR MULTI USO EM PO A B C (6 KG) - CAPACIDADE EXTINTORA 3A 20BC | S184: un | T184: 17 | W184: 0
A185: S | B185: 3 | C185: S | D185: 0 | E185: 1 | F185: 7 | G185: 4 | H185: 0 | I185: 0 | J185: 0 | K185: 0 | M185: Serviço | N185: Serviço | O185: - | P185: AGETOP | Q185: 85011 | R185: CAIXA DE INCÊNDIO METÁLICA COM SUPORTE PARA MANGUEIRA, TAMPA E MURETA 17X60X90 CM C/PINTURA | S185: Un | T185: 12 | W185: 0
A186: S | B186: 3 | C186: S | D186: 0 | E186: 1 | F186: 7 | G186: 4 | H186: 0 | I186: 0 | J186: 0 | K186: 0 | M186: Serviço | N186: Serviço | O186: - | P186: AGETOP | Q186: 85017 | R186: MANGUEIRA DE INCÊNDIO D.I. = 38 MM TIPO 2 COMP. = 15 M | S186: CJ | T186: 24 | W186: 0
A187: S | B187: 3 | C187: S | D187: 0 | E187: 1 | F187: 7 | G187: 4 | H187: 0 | I187: 0 | J187: 0 | K187: 0 | M187: Serviço | N187: Serviço | O187: - | P187: AGETOP | Q187: 85025 | R187: ESGUICHO REGULÁVEL 1.1/2" | S187: Un | T187: 12 | W187: 0
A188: S | B188: 3 | C188: S | D188: 0 | E188: 1 | F188: 7 | G188: 4 | H188: 0 | I188: 0 | J188: 0 | K188: 0 | M188: Serviço | N188: Serviço | O188: - | P188: AGETOP | Q188: 85027 | R188: ADAPTADOR P/ENGATE STORZ 2.1/2" X 1.1/2" | S188: Un | T188: 12 | W188: 0
A189: S | B189: 3 | C189: S | D189: 0 | E189: 1 | F189: 7 | G189: 4 | H189: 0 | I189: 0 | J189: 0 | K189: 0 | M189: Serviço | N189: Serviço | O189: - | P189: AGETOP | Q189: 85031 | R189: REGISTRO GLOBO ANGULAR 2.1/2" | S189: Un | T189: 12 | W189: 0
A190: S | B190: 3 | C190: S | D190: 0 | E190: 1 | F190: 7 | G190: 4 | H190: 0 | I190: 0 | J190: 0 | K190: 0 | M190: Serviço | N190: Serviço | O190: - | P190: AGETOP | Q190: 85035 | R190: TAMPÃO CEGO COM CORRENTE 2.1/2" | S190: Un | T190: 12 | W190: 0
A191: S | B191: 3 | C191: S | D191: 0 | E191: 1 | F191: 7 | G191: 4 | H191: 0 | I191: 0 | J191: 0 | K191: 0 | M191: Serviço | N191: Serviço | O191: - | P191: AGETOP | Q191: 85037 | R191: TANQUE DE PRESSÃO DE 10 L | S191: Un | T191: 1 | W191: 0
A192: S | B192: 3 | C192: S | D192: 0 | E192: 1 | F192: 7 | G192: 4 | H192: 0 | I192: 0 | J192: 0 | K192: 0 | M192: Serviço | N192: Serviço | O192: - | P192: AGETOP | Q192: 85039 | R192: PRESSOSTATO 50 A 80 PSI | S192: Un | T192: 1 | W192: 0
A193: S | B193: 3 | C193: S | D193: 0 | E193: 1 | F193: 7 | G193: 4 | H193: 0 | I193: 0 | J193: 0 | K193: 0 | M193: Serviço | N193: Serviço | O193: - | P193: AGETOP | Q193: 85041 | R193: MANOMETRO - 0 A 10 KG/CM2 | S193: Un | T193: 1 | W193: 0
A194: S | B194: 3 | C194: S | D194: 0 | E194: 1 | F194: 7 | G194: 4 | H194: 0 | I194: 0 | J194: 0 | K194: 0 | M194: Serviço | N194: Serviço | O194: - | P194: AGETOP | Q194: 85047 | R194: NIPLE DUPLO FERRO GALVANIZADO 2.1/2" | S194: Un | T194: 16 | W194: 0
A195: S | B195: 3 | C195: S | D195: 0 | E195: 1 | F195: 7 | G195: 4 | H195: 0 | I195: 0 | J195: 0 | K195: 0 | M195: Serviço | N195: Serviço | O195: - | P195: AGETOP | Q195: 85077 | R195: VÁLVULA DE RETENÇÃO HORIZONTAL 2.1/2" | S195: Un | T195: 2 | W195: 0
A196: S | B196: 3 | C196: S | D196: 0 | E196: 1 | F196: 7 | G196: 4 | H196: 0 | I196: 0 | J196: 0 | K196: 0 | M196: Serviço | N196: Serviço | O196: - | P196: COMPOSIÇÃO | Q196: COMP 017_SEE | R196: REDUCAO GIRATÓRIA TIPO STORZ LATAO P/ INST. PREDIAL COMBATE A INCENDIO ENGATE RAPIDO 2.1/2" X 1.1/2" | S196: UN | T196: 12 | W196: 0
A197: S | B197: 3 | C197: S | D197: 0 | E197: 1 | F197: 7 | G197: 4 | H197: 0 | I197: 0 | J197: 0 | K197: 0 | M197: Serviço | N197: Serviço | O197: - | P197: COMPOSIÇÃO | Q197: COMP 018_SEE | R197: CHAVE DUPLA P/ CONEXÕES TIPO STORZ EM LATÃO ENGATE RÁPIDO 1 1/2" X 2 1/2" | S197: UN | T197: 12 | W197: 0
A198: S | B198: 3 | C198: S | D198: 0 | E198: 1 | F198: 7 | G198: 4 | H198: 0 | I198: 0 | J198: 0 | K198: 0 | M198: Serviço | N198: Serviço | O198: - | P198: AGETOP | Q198: 80981 | R198: REGISTRO DE ESFERA DIAMETRO 2.1/2" | S198: Un | T198: 1 | W198: 0
A199: S | B199: 3 | C199: S | D199: 0 | E199: 1 | F199: 7 | G199: 4 | H199: 0 | I199: 0 | J199: 0 | K199: 0 | M199: Serviço | N199: Serviço | O199: - | P199: COMPOSIÇÃO | Q199: COMP 087_SEE | R199: REGISTRO DE GAVETA COM HASTE ASCENDENTE DE BRONZE 2 1/2" | S199: UN | T199: 1 | W199: 0
A200: S | B200: 3 | C200: S | D200: 0 | E200: 1 | F200: 7 | G200: 4 | H200: 0 | I200: 0 | J200: 0 | K200: 0 | M200: Serviço | N200: Serviço | O200: - | P200: COMPOSIÇÃO | Q200: COMP 019_SEE | R200: TAMPÃO LATAO C/ CORRENTE P/ INSTALAÇÃO PREDIAL COMBATE A INCÊNDIO ENGATE RÁPIDO 1 1/2" | S200: UN | T200: 12 | W200: 0
A201: S | B201: 3 | C201: S | D201: 0 | E201: 1 | F201: 7 | G201: 4 | H201: 0 | I201: 0 | J201: 0 | K201: 0 | M201: Serviço | N201: Serviço | O201: - | P201: AGETOP | Q201: 85056 | R201: TÊ DE FERRO GALVANIZADO 90º X 2 1/2" | S201: un | T201: 14 | W201: 0
A202: S | B202: 3 | C202: S | D202: 0 | E202: 1 | F202: 7 | G202: 4 | H202: 0 | I202: 0 | J202: 0 | K202: 0 | M202: Serviço | N202: Serviço | O202: - | P202: COMPOSIÇÃO | Q202: COMP 030_SEE | R202: COTOVELO DE FERRO GALV. 90° X 2 1/2" | S202: UN | T202: 70 | W202: 0
A203: S | B203: 3 | C203: S | D203: 0 | E203: 1 | F203: 7 | G203: 4 | H203: 0 | I203: 0 | J203: 0 | K203: 0 | M203: Serviço | N203: Serviço | O203: - | P203: COMPOSIÇÃO | Q203: COMP 077_SEE | R203: UNIAO FERRO GALV C/ASSENTO CONICO BRONZE 2 1/2" | S203: UN | T203: 6 | W203: 0
A204: S | B204: 3 | C204: S | D204: 0 | E204: 1 | F204: 7 | G204: 4 | H204: 0 | I204: 0 | J204: 0 | K204: 0 | M204: Serviço | N204: Serviço | O204: - | P204: COMPOSIÇÃO | Q204: COMP 549_SEE | R204: FLANGE GALVANIZADA 2.1/2" - FORNECIMENTO E INSTALAÇÃO | S204: UN | T204: 1 | W204: 0
A205: S | B205: 3 | C205: S | D205: 0 | E205: 1 | F205: 7 | G205: 4 | H205: 0 | I205: 0 | J205: 0 | K205: 0 | M205: Serviço | N205: Serviço | O205: - | P205: COMPOSIÇÃO | Q205: COMP 022_SEE | R205: TAMPÃO FOFO 40X50CM C/INSCRIÇÃO | S205: UN | T205: 1 | W205: 0
A206: S | B206: 3 | C206: S | D206: 0 | E206: 1 | F206: 7 | G206: 4 | H206: 0 | I206: 0 | J206: 0 | K206: 0 | M206: Serviço | N206: Serviço | O206: - | P206: COMPOSIÇÃO | Q206: COMP 546_SEE | R206: BUJÃO DE REBORDO 2.1/2" | S206: UN | T206: 1 | W206: 0
... 146 more rows

Sheet Resumo
B3: UNIDADE ESCOLAR | G3: CÓDIGO INEP
B4: =Orçamento!$O$4 -> CENTRO DE ENSINO EM PERÍODO INTEGRAL PROFESSOR PEDRO GOMES | G4: =Orçamento!V4 -> 52033597
B6: OBRA | G6: CIDADE
B7: =Orçamento!$O$7 -> REFORMA | G7: =Orçamento!$V$7 -> GOIÂNIA
B9: ENDEREÇO | G9: CRE
B10: =Orçamento!$R$10 -> AV SERGIPE C/ BENJAMIN CONSTANT S/N, SETOR CAMPINAS, CEP:74550-408 | G10: =Orçamento!$O$10 -> GOIÂNIA
B12: REFERÊNCIA | D12: DATA | G12: ÁREA TOTAL CONSTRUÍDA (M²)
B13: =CONCATENATE("AGETOP E SINAPI - ",Orçamento!$W$10) -> AGETOP E SINAPI - DESONERADA | D13: =Orçamento!$S$7 -> 2020-03-25 | G13: =Orçamento!$S$13 -> 5317.06
A14: FILTRO
B15: RESUMO GERAL DO ORÇAMENTO
A16: ↓ | B16: ITEM | C16: DESCRIÇÃO DOS SERVIÇOS | E16: UNID | F16: QUANT | G16: PREÇO SEM BDI | H16: PREÇO COM BDI | I16: PARTICIP. (%)
A17: =IF(E17>0,"F","") -> F | B17: 1. | C17: =Orçamento!$P332 -> REFORMA | E17: UN | F17: 1 | G17: =IFERROR(Orçamento!S332,"-") -> 0 | H17: =IFERROR(Orçamento!V332,"") -> 0 | I17: =Orçamento!X332 -> 100
A18: =IF(E18>0,"F","") ->  | B18: 2. | C18: =Orçamento!$P333 ->  | G18: =IFERROR(Orçamento!S333,"-") -> 0 | H18: =IFERROR(Orçamento!V333,"") -> 0 | I18: =Orçamento!X333 -> 0
B19: 3. | C19: =Orçamento!$P334 ->  | G19: =IFERROR(Orçamento!S334,"-") -> 0 | H19: =IFERROR(Orçamento!V334,"") -> 0 | I19: =Orçamento!X334 -> 0
B20: 4. | C20: =Orçamento!$P335 ->  | G20: =IFERROR(Orçamento!S335,"-") -> 0 | H20: =IFERROR(Orçamento!V335,"") -> 0 | I20: =Orçamento!X335 -> 0
B21: 5. | C21: =Orçamento!$P336 ->  | G21: =IFERROR(Orçamento!S336,"-") -> 0 | H21: =IFERROR(Orçamento!V336,"") -> 0 | I21: =Orçamento!X336 -> 0
B22: 6. | C22: =Orçamento!$P337 ->  | G22: =IFERROR(Orçamento!S337,"-") -> 0 | H22: =IFERROR(Orçamento!V337,"") -> 0 | I22: =Orçamento!X337 -> 0
B23: 7. | C23: =Orçamento!$P338 ->  | G23: =IFERROR(Orçamento!S338,"-") -> 0 | H23: =IFERROR(Orçamento!V338,"") -> 0 | I23: =Orçamento!X338 -> 0
B24: 8. | C24: =Orçamento!$P339 ->  | G24: =IFERROR(Orçamento!S339,"-") -> 0 | H24: =IFERROR(Orçamento!V339,"") -> 0 | I24: =Orçamento!X339 -> 0
B25: 9. | C25: =Orçamento!$P340 ->  | G25: =IFERROR(Orçamento!S340,"-") -> 0 | H25: =IFERROR(Orçamento!V340,"") -> 0 | I25: =Orçamento!X340 -> 0
B26: 10. | C26: =Orçamento!$P341 ->  | G26: =IFERROR(Orçamento!S341,"-") -> 0 | H26: =IFERROR(Orçamento!V341,"") -> 0 | I26: =Orçamento!X341 -> 0
B27: 11. | C27: =Orçamento!$P342 ->  | G27: =IFERROR(Orçamento!S342,"-") -> 0 | H27: =IFERROR(Orçamento!V342,"") -> 0 | I27: =Orçamento!X342 -> 0
B28: 12. | C28: =Orçamento!$P343 ->  | G28: =IFERROR(Orçamento!S343,"-") -> 0 | H28: =IFERROR(Orçamento!V343,"") -> 0 | I28: =Orçamento!X343 -> 0
B29: 13. | C29: =Orçamento!$P344 ->  | G29: =IFERROR(Orçamento!S344,"-") -> 0 | H29: =IFERROR(Orçamento!V344,"") -> 0 | I29: =Orçamento!X344 -> 0
B30: 14. | C30: =Orçamento!$P345 ->  | G30: =IFERROR(Orçamento!S345,"-") -> 0 | H30: =IFERROR(Orçamento!V345,"") -> 0 | I30: =Orçamento!X345 -> 0
B31: 15. | C31: =Orçamento!$P346 ->  | G31: =IFERROR(Orçamento!S346,"-") -> 0 | H31: =IFERROR(Orçamento!V346,"") -> 0 | I31: =Orçamento!X346 -> 0
B32: 16. | C32: =Orçamento!$P347 ->  | G32: =IFERROR(Orçamento!S347,"-") -> 0 | H32: =IFERROR(Orçamento!V347,"") -> 0 | I32: =Orçamento!X347 -> 0
B33: 17. | C33: =Orçamento!$P348 ->  | G33: =IFERROR(Orçamento!S348,"-") -> 0 | H33: =IFERROR(Orçamento!V348,"") -> 0 | I33: =Orçamento!X348 -> 0
B34: 18. | C34: =Orçamento!$P349 ->  | G34: =IFERROR(Orçamento!S349,"-") -> 0 | H34: =IFERROR(Orçamento!V349,"") -> 0 | I34: =Orçamento!X349 -> 0
B35: 19. | C35: =Orçamento!$P350 ->  | G35: =IFERROR(Orçamento!S350,"-") -> 0 | H35: =IFERROR(Orçamento!V350,"") -> 0 | I35: =Orçamento!X350 -> 0
B36: 20. | C36: =Orçamento!$P351 ->  | G36: =IFERROR(Orçamento!S351,"-") -> 0 | H36: =IFERROR(Orçamento!V351,"") -> 0 | I36: =Orçamento!X351 -> 0
A37: F | B37: TOTAL GERAL DO ORÇAMENTO (R$) | G37: =SUM(G17:G36) -> 0 | H37: 0 | I37: =SUM(I17:I36) -> 100
A38: F
A39: F

Sheet Somatório
B3: UNIDADE ESCOLAR | E3: CÓDIGO INEP
B4: =Orçamento!$O$4 -> CENTRO DE ENSINO EM PERÍODO INTEGRAL PROFESSOR PEDRO GOMES | E4: =Orçamento!V4 -> 52033597
B6: OBRA | E6: CIDADE
B7: =Orçamento!$O$7 -> REFORMA | E7: =Orçamento!$V$7 -> GOIÂNIA
B9: ENDEREÇO | E9: CRE
B10: =Orçamento!$R$10 -> AV SERGIPE C/ BENJAMIN CONSTANT S/N, SETOR CAMPINAS, CEP:74550-408 | E10: =Orçamento!$O$10 -> GOIÂNIA
B12: REFERÊNCIA | D12: DATA | E12: ÁREA TOTAL CONSTRUÍDA (M²)
B13: =CONCATENATE("AGETOP E SINAPI - ",Orçamento!$W$10) -> AGETOP E SINAPI - DESONERADA | D13: =Orçamento!$S$7 -> 2020-03-25 | E13: =Orçamento!$S$13 -> 5317.06
A14: FILTRO
B15: SOMATÓRIO DE SERVIÇOS
A16: ↓ | B16: ITEM | C16: DESCRIÇÃO DOS SERVIÇOS | D16: PREÇO SEM BDI (R$) | E16: PREÇO COM BDI (R$) | F16: PARTIC. ( % )
A17: =IF(D17>0,"F","") ->  | B17: a. | C17: =Orçamento!P298 -> SERVIÇOS PRELIMINARES | D17: =Orçamento!S298 -> 0 | E17: =Orçamento!V298 -> 0 | F17: =Orçamento!X298 -> 0
A18: =IF(D18>0,"F","") ->  | B18: b. | C18: =Orçamento!P299 -> TRANSPORTES | D18: =Orçamento!S299 -> 0 | E18: =Orçamento!V299 -> 0 | F18: =Orçamento!X299 -> 0
B19: c. | C19: =Orçamento!P300 -> SERVIÇO EM TERRA | D19: =Orçamento!S300 -> 0 | E19: =Orçamento!V300 -> 0 | F19: =Orçamento!X300 -> 0
B20: d. | C20: =Orçamento!P301 -> FUNDAÇÕES E SONDAGENS | D20: =Orçamento!S301 -> 0 | E20: =Orçamento!V301 -> 0 | F20: =Orçamento!X301 -> 0
B21: e. | C21: =Orçamento!P302 -> ESTRUTURA | D21: =Orçamento!S302 -> 0 | E21: =Orçamento!V302 -> 0 | F21: =Orçamento!X302 -> 0
B22: f. | C22: =Orçamento!P303 -> INSTALAÇÕES ELÉTRICAS | D22: =Orçamento!S303 -> 0 | E22: =Orçamento!V303 -> 0 | F22: =Orçamento!X303 -> 0
B23: g. | C23: =Orçamento!P304 -> INSTALAÇÕES HIDROSSANITÁRIAS | D23: =Orçamento!S304 -> 0 | E23: =Orçamento!V304 -> 0 | F23: =Orçamento!X304 -> 0
B24: h. | C24: =Orçamento!P305 -> INSTALAÇÕES ESPECIAIS | D24: =Orçamento!S305 -> 0 | E24: =Orçamento!V305 -> 0 | F24: =Orçamento!X305 -> 0
B25: i. | C25: =Orçamento!P306 -> ALVENARIAS E DIVISÓRIAS | D25: =Orçamento!S306 -> 0 | E25: =Orçamento!V306 -> 0 | F25: =Orçamento!X306 -> 0
B26: j. | C26: =Orçamento!P307 -> ALVENARIA AUTO-PORTANTE | D26: =Orçamento!S307 -> 0 | E26: =Orçamento!V307 -> 0 | F26: =Orçamento!X307 -> 0
B27: k. | C27: =Orçamento!P308 -> IMPERMEABILIZAÇÃO | D27: =Orçamento!S308 -> 0 | E27: =Orçamento!V308 -> 0 | F27: =Orçamento!X308 -> 0
B28: l. | C28: =Orçamento!P309 -> ISOLAMENTO TÉRMICO E ACÚSTICO | D28: =Orçamento!S309 -> 0 | E28: =Orçamento!V309 -> 0 | F28: =Orçamento!X309 -> 0
B29: m. | C29: =Orçamento!P310 -> ESTRUTURA DE MADEIRA | D29: =Orçamento!S310 -> 0 | E29: =Orçamento!V310 -> 0 | F29: =Orçamento!X310 -> 0
B30: n. | C30: =Orçamento!P311 -> ESTRUTURAS METÁLICAS | D30: =Orçamento!S311 -> 0 | E30: =Orçamento!V311 -> 0 | F30: =Orçamento!X311 -> 0
B31: o. | C31: =Orçamento!P312 -> COBERTURAS | D31: =Orçamento!S312 -> 0 | E31: =Orçamento!V312 -> 0 | F31: =Orçamento!X312 -> 0
B32: p. | C32: =Orçamento!P313 -> ESQUADRIAS DE MADEIRA | D32: =Orçamento!S313 -> 0 | E32: =Orçamento!V313 -> 0 | F32: =Orçamento!X313 -> 0
B33: q. | C33: =Orçamento!P314 -> ESQUADRIAS METÁLICAS | D33: =Orçamento!S314 -> 0 | E33: =Orçamento!V314 -> 0 | F33: =Orçamento!X314 -> 0
B34: r. | C34: =Orçamento!P315 -> VIDROS | D34: =Orçamento!S315 -> 0 | E34: =Orçamento!V315 -> 0 | F34: =Orçamento!X315 -> 0
B35: s. | C35: =Orçamento!P316 -> REVESTIMENTO DE PAREDE | D35: =Orçamento!S316 -> 0 | E35: =Orçamento!V316 -> 0 | F35: =Orçamento!X316 -> 0
B36: t. | C36: =Orçamento!P317 -> FORROS | D36: =Orçamento!S317 -> 0 | E36: =Orçamento!V317 -> 0 | F36: =Orçamento!X317 -> 0
B37: u. | C37: =Orçamento!P318 -> REVESTIMENTO DE PISO | D37: =Orçamento!S318 -> 0 | E37: =Orçamento!V318 -> 0 | F37: =Orçamento!X318 -> 0
B38: v. | C38: =Orçamento!P319 -> FERRAGENS | D38: =Orçamento!S319 -> 0 | E38: =Orçamento!V319 -> 0 | F38: =Orçamento!X319 -> 0
B39: w. | C39: =Orçamento!P320 -> MARCENARIA | D39: =Orçamento!S320 -> 0 | E39: =Orçamento!V320 -> 0 | F39: =Orçamento!X320 -> 0
B40: x. | C40: =Orçamento!P321 -> ADMINISTRAÇÃO | D40: =Orçamento!S321 -> 0 | E40: =Orçamento!V321 -> 0 | F40: =Orçamento!X321 -> 0
B41: y. | C41: =Orçamento!P322 -> PINTURA | D41: =Orçamento!S322 -> 0 | E41: =Orçamento!V322 -> 0 | F41: =Orçamento!X322 -> 0
B42: z. | C42: =Orçamento!P323 -> DIVERSOS | D42: =Orçamento!S323 -> 0 | E42: =Orçamento!V323 -> 0 | F42: =Orçamento!X323 -> 0
A43: F | B43: TOTAL GERAL DO ORÇAMENTO | D43: =SUM(D17:D42) -> 0 | E43: =SUM(E17:E42) -> 0 | F43: =SUM(F17:F42) -> 0
B45: (*) Para itens da AGETOP, os vidros não estão inclusos nas esquadrias e já foram considerados os custos de contramarco para as esquadrias de alumínio;

Sheet Cronog_60_Dias
B3: UNIDADE ESCOLAR | I3: PRAZO
B4: =Orçamento!$O$4 -> CENTRO DE ENSINO EM PERÍODO INTEGRAL PROFESSOR PEDRO GOMES | I4: 60 DIAS CORRIDOS
B6: OBRA | I6: DATA
B7: =Orçamento!$O$7 -> REFORMA | I7: =Orçamento!$S$7 -> 2020-03-25
B9: LOCAL | I9: ÁREA TOTAL CONSTRUÍDA (M²)
A10: FILTRO | B10: =Orçamento!$V$7 -> GOIÂNIA | I10: =Orçamento!$S$13 -> 5317.06
B12: CRONOGRAMA - FÍSICO FINANCEIRO
A13: ↓ | B13: CUSTO TOTAL: | C13: =D93 -> 0 | D13: VALOR | E13: Dias: | F13: 30 | J13: 60 | N13: TOTAL
B14: DESCRIÇÃO DOS SERVIÇOS | E14: % | F14: 1ª PARCELA | J14: 2ª PARCELA
A15: =IF(D15>0,"F","") ->  | B15: SERVIÇOS PRELIMINARES | D15: =Orçamento!V298 -> 0 | E15: =Orçamento!X298 -> 0 | F15: =ROUND(F17*$D$15,2) -> 0 | J15: =ROUND(J17*$D$15,2) -> 0 | N15: =SUM(F15:M15) -> 0
A16: =IF(A15="F",A15,"") -> 
A17: =IF(A16="F",A16,"") ->  | F17: 1 | J17: =1-F17 -> 0 | N17: =IFERROR(E15/100,"") -> 0
A18: =IF(D18>0,"F","") ->  | B18: TRANSPORTES | D18: =Orçamento!V299 -> 0 | E18: =Orçamento!X299 -> 0 | F18: =ROUND(F20*$D$18,2) -> 0 | J18: =ROUND(J20*$D$18,2) -> 0 | N18: =SUM(F18:M18) -> 0
A19: =IF(A18="F",A18,"") -> 
A20: =IF(A19="F",A19,"") ->  | F20: 0.48 | J20: =1-F20 -> 0.52 | N20: =IFERROR(E18/100,"") -> 0
A21: =IF(D21>0,"F","") ->  | B21: SERVIÇO EM TERRA | D21: =Orçamento!V300 -> 0 | E21: =Orçamento!X300 -> 0 | F21: =ROUND(F23*$D$21,2) -> 0 | J21: =ROUND(J23*$D$21,2) -> 0 | N21: =SUM(F21:M21) -> 0
A22: =IF(A21="F",A21,"") -> 
A23: =IF(A22="F",A22,"") ->  | F23: 1 | J23: =1-F23 -> 0 | N23: =IFERROR(E21/100,"") -> 0
A24: =IF(D24>0,"F","") ->  | B24: FUNDAÇÕES E SONDAGENS | D24: =Orçamento!V301 -> 0 | E24: =Orçamento!X301 -> 0 | F24: =ROUND(F26*$D$24,2) -> 0 | J24: =ROUND(J26*$D$24,2) -> 0 | N24: =SUM(F24:M24) -> 0
A25: =IF(A24="F",A24,"") -> 
A26: =IF(A25="F",A25,"") ->  | F26: 1 | J26: =1-F26 -> 0 | N26: =IFERROR(E24/100,"") -> 0
A27: =IF(D27>0,"F","") ->  | B27: ESTRUTURA | D27: =Orçamento!V302 -> 0 | E27: =Orçamento!X302 -> 0 | F27: =ROUND(F29*$D$27,2) -> 0 | J27: =ROUND(J29*$D$27,2) -> 0 | N27: =SUM(F27:M27) -> 0
A28: =IF(A27="F",A27,"") -> 
A29: =IF(A28="F",A28,"") ->  | F29: 0.49 | J29: =1-F29 -> 0.51 | N29: =IFERROR(E27/100,"") -> 0
A30: =IF(D30>0,"F","") ->  | B30: INST.ELET/TELEFÔNICA/CABEAMENTO ESTRUTURADO | D30: =Orçamento!V303 -> 0 | E30: =Orçamento!X303 -> 0 | F30: =ROUND(F32*$D$30,2) -> 0 | J30: =ROUND(J32*$D$30,2) -> 0 | N30: =SUM(F30:M30) -> 0
A31: =IF(A30="F",A30,"") -> 
A32: =IF(A31="F",A31,"") ->  | F32: 0.4 | J32: =1-F32 -> 0.6 | N32: =IFERROR(E30/100,"") -> 0
A33: =IF(D33>0,"F","") ->  | B33: INSTALAÇÕES HIDROSSANITÁRIAS | D33: =Orçamento!V304 -> 0 | E33: =Orçamento!X304 -> 0 | F33: =ROUND(F35*$D$33,2) -> 0 | J33: =ROUND(J35*$D$33,2) -> 0 | N33: =SUM(F33:M33) -> 0
A34: =IF(A33="F",A33,"") -> 
A35: =IF(A34="F",A34,"") ->  | F35: 0.48 | J35: =1-F35 -> 0.52 | N35: =IFERROR(E33/100,"") -> 0
A36: =IF(D36>0,"F","") ->  | B36: INSTALAÇÕES ESPECIAIS | D36: =Orçamento!V305 -> 0 | E36: =Orçamento!X305 -> 0 | F36: =ROUND(F38*$D$36,2) -> 0 | J36: =ROUND(J38*$D$36,2) -> 0 | N36: =SUM(F36:M36) -> 0
A37: =IF(A36="F",A36,"") -> 
A38: =IF(A37="F",A37,"") ->  | F38: 1 | J38: =1-F38 -> 0 | N38: =IFERROR(E36/100,"") -> 0
A39: =IF(D39>0,"F","") ->  | B39: ALVENARIA E DIVISÓRIAS | D39: =Orçamento!V306 -> 0 | E39: =Orçamento!X306 -> 0 | F39: =ROUND(F41*$D$39,2) -> 0 | J39: =ROUND(J41*$D$39,2) -> 0 | N39: =SUM(F39:M39) -> 0
A40: =IF(A39="F",A39,"") -> 
A41: =IF(A40="F",A40,"") ->  | F41: 1 | J41: =1-F41 -> 0 | N41: =IFERROR(E39/100,"") -> 0
A42: =IF(D42>0,"F","") ->  | B42: ALVENARIA AUTO-PORTANTE | D42: =Orçamento!V307 -> 0 | E42: =Orçamento!X307 -> 0 | F42: =ROUND(F44*$D$42,2) -> 0 | J42: =ROUND(J44*$D$42,2) -> 0 | N42: =SUM(F42:M42) -> 0
A43: =IF(A42="F",A42,"") -> 
A44: =IF(A43="F",A43,"") ->  | F44: 1 | J44: =1-F44 -> 0 | N44: =IFERROR(E42/100,"") -> 0
A45: =IF(D45>0,"F","") ->  | B45: IMPERMEABILIZAÇÃO | D45: =Orçamento!V308 -> 0 | E45: =Orçamento!X308 -> 0 | F45: =ROUND(F47*$D$45,2) -> 0 | J45: =ROUND(J47*$D$45,2) -> 0 | N45: =SUM(F45:M45) -> 0
A46: =IF(A45="F",A45,"") -> 
A47: =IF(A46="F",A46,"") ->  | F47: 1 | J47: =1-F47 -> 0 | N47: =IFERROR(E45/100,"") -> 0
A48: =IF(D48>0,"F","") ->  | B48: ISOLAMENTO TÉRMICO E ACÚSTICO | D48: =Orçamento!V309 -> 0 | E48: =Orçamento!X309 -> 0 | F48: =ROUND(F50*$D$48,2) -> 0 | J48: =ROUND(J50*$D$48,2) -> 0 | N48: =SUM(F48:M48) -> 0
A49: =IF(A48="F",A48,"") -> 
A50: =IF(A49="F",A49,"") ->  | F50: 0.5 | J50: =1-F50 -> 0.5 | N50: =IFERROR(E48/100,"") -> 0
A51: =IF(D51>0,"F","") ->  | B51: ESTRUTURA DE MADEIRA | D51: =Orçamento!V310 -> 0 | E51: =Orçamento!X310 -> 0 | F51: =ROUND(F53*$D$51,2) -> 0 | J51: =ROUND(J53*$D$51,2) -> 0 | N51: =SUM(F51:M51) -> 0
A52: =IF(A51="F",A51,"") -> 
A53: =IF(A52="F",A52,"") ->  | F53: 0.4 | J53: =1-F53 -> 0.6 | N53: =IFERROR(E51/100,"") -> 0
A54: =IF(D54>0,"F","") ->  | B54: ESTRUTURA METÁLICA | D54: =Orçamento!V311 -> 0 | E54: =Orçamento!X311 -> 0 | F54: =ROUND(F56*$D$54,2) -> 0 | J54: =ROUND(J56*$D$54,2) -> 0 | N54: =SUM(F54:M54) -> 0
A55: =IF(A54="F",A54,"") -> 
A56: =IF(A55="F",A55,"") ->  | F56: 0.35 | J56: =1-F56 -> 0.65 | N56: =IFERROR(E54/100,"") -> 0
A57: =IF(D57>0,"F","") ->  | B57: COBERTURAS | D57: =Orçamento!V312 -> 0 | E57: =Orçamento!X312 -> 0 | F57: =ROUND(F59*$D$57,2) -> 0 | J57: =ROUND(J59*$D$57,2) -> 0 | N57: =SUM(F57:M57) -> 0
A58: =IF(A57="F",A57,"") -> 
A59: =IF(A58="F",A58,"") ->  | F59: 0 | J59: =1-F59 -> 1 | N59: =IFERROR(E57/100,"") -> 0
A60: =IF(D60>0,"F","") ->  | B60: ESQUADRIAS DE MADEIRA | D60: =Orçamento!V313 -> 0 | E60: =Orçamento!X313 -> 0 | F60: =ROUND(F62*$D$60,2) -> 0 | J60: =ROUND(J62*$D$60,2) -> 0 | N60: =SUM(F60:M60) -> 0
A61: =IF(A60="F",A60,"") -> 
A62: =IF(A61="F",A61,"") ->  | F62: 0.54 | J62: =1-F62 -> 0.46 | N62: =IFERROR(E60/100,"") -> 0
A63: =IF(D63>0,"F","") ->  | B63: ESQUADRIAS METÁLICAS | D63: =Orçamento!V314 -> 0 | E63: =Orçamento!X314 -> 0 | F63: =ROUND(F65*$D$63,2) -> 0 | J63: =ROUND(J65*$D$63,2) -> 0 | N63: =SUM(F63:M63) -> 0
A64: =IF(A63="F",A63,"") -> 
A65: =IF(A64="F",A64,"") ->  | F65: 0.49 | J65: =1-F65 -> 0.51 | N65: =IFERROR(E63/100,"") -> 0
A66: =IF(D66>0,"F","") ->  | B66: VIDROS | D66: =Orçamento!V315 -> 0 | E66: =Orçamento!X315 -> 0 | F66: =ROUND(F68*$D$66,2) -> 0 | J66: =ROUND(J68*$D$66,2) -> 0 | N66: =SUM(F66:M66) -> 0
A67: =IF(A66="F",A66,"") -> 
A68: =IF(A67="F",A67,"") ->  | F68: 0 | J68: =1-F68 -> 1 | N68: =IFERROR(E66/100,"") -> 0
A69: =IF(D69>0,"F","") ->  | B69: REVESTIMENTO DE PAREDE | D69: =Orçamento!V316 -> 0 | E69: =Orçamento!X316 -> 0 | F69: =ROUND(F71*$D$69,2) -> 0 | J69: =ROUND(J71*$D$69,2) -> 0 | N69: =SUM(F69:M69) -> 0
A70: =IF(A69="F",A69,"") -> 
A71: =IF(A70="F",A70,"") ->  | F71: 0.32 | J71: =1-F71 -> 0.68 | N71: =IFERROR(E69/100,"") -> 0
A72: =IF(D72>0,"F","") ->  | B72: FORROS | D72: =Orçamento!V317 -> 0 | E72: =Orçamento!X317 -> 0 | F72: =ROUND(F74*$D$72,2) -> 0 | J72: =ROUND(J74*$D$72,2) -> 0 | N72: =SUM(F72:M72) -> 0
A73: =IF(A72="F",A72,"") -> 
A74: =IF(A73="F",A73,"") ->  | F74: 0.24 | J74: =1-F74 -> 0.76 | N74: =IFERROR(E72/100,"") -> 0
A75: =IF(D75>0,"F","") ->  | B75: REVESTIMENTO DE PISO | D75: =Orçamento!V318 -> 0 | E75: =Orçamento!X318 -> 0 | F75: =ROUND(F77*$D$75,2) -> 0 | J75: =ROUND(J77*$D$75,2) -> 0 | N75: =SUM(F75:M75) -> 0
A76: =IF(A75="F",A75,"") -> 
A77: =IF(A76="F",A76,"") ->  | F77: 0.49 | J77: =1-F77 -> 0.51 | N77: =IFERROR(E75/100,"") -> 0
A78: =IF(D78>0,"F","") ->  | B78: FERRAGENS | D78: =Orçamento!V319 -> 0 | E78: =Orçamento!X319 -> 0 | F78: =ROUND(F80*$D$78,2) -> 0 | J78: =ROUND(J80*$D$78,2) -> 0 | N78: =SUM(F78:M78) -> 0
A79: =IF(A78="F",A78,"") -> 
A80: =IF(A79="F",A79,"") ->  | F80: 0 | J80: =1-F80 -> 1 | N80: =IFERROR(E78/100,"") -> 0
A81: =IF(D81>0,"F","") ->  | B81: MARCENARIA | D81: =Orçamento!V320 -> 0 | E81: =Orçamento!X320 -> 0 | F81: =ROUND(F83*$D$81,2) -> 0 | J81: =ROUND(J83*$D$81,2) -> 0 | N81: =SUM(F81:M81) -> 0
A82: =IF(A81="F",A81,"") -> 
A83: =IF(A82="F",A82,"") ->  | F83: 0.4 | J83: =1-F83 -> 0.6 | N83: =IFERROR(E81/100,"") -> 0
A84: =IF(D84>0,"F","") ->  | B84: ADMINISTRAÇÃO - MENSALISTAS | D84: =Orçamento!V321 -> 0 | E84: =Orçamento!X321 -> 0 | F84: =ROUND(F86*$D$84,2) -> 0 | J84: =ROUND(J86*$D$84,2) -> 0 | N84: =SUM(F84:M84) -> 0
A85: =IF(A84="F",A84,"") -> 
A86: =IF(A85="F",A85,"") ->  | F86: 0.49 | J86: =1-F86 -> 0.51 | N86: =IFERROR(E84/100,"") -> 0
A87: =IF(D87>0,"F","") ->  | B87: PINTURA | D87: =Orçamento!V322 -> 0 | E87: =Orçamento!X322 -> 0 | F87: =ROUND(F89*$D$87,2) -> 0 | J87: =ROUND(J89*$D$87,2) -> 0 | N87: =SUM(F87:M87) -> 0
A88: =IF(A87="F",A87,"") -> 
A89: =IF(A88="F",A88,"") ->  | F89: 0 | J89: =1-F89 -> 1 | N89: =IFERROR(E87/100,"") -> 0
A90: =IF(D90>0,"F","") ->  | B90: DIVERSOS | D90: =Orçamento!V323 -> 0 | E90: =Orçamento!X323 -> 0 | F90: =ROUND(F92*$D$90,2) -> 0 | J90: =ROUND(J92*$D$90,2) -> 0 | N90: =SUM(F90:M90) -> 0
A91: =IF(A90="F",A90,"") -> 
A92: =IF(A91="F",A91,"") ->  | F92: 0.46 | J92: =1-F92 -> 0.54 | N92: =IFERROR(E90/100,"") -> 0
A93: F | B93: CUSTO DO ORÇAMENTO | D93: =SUM(D15:D92) -> 0 | E93: =SUM(E15:E92) -> 0 | F93: =F15+F18+F21+F24+F27+F30+F33+F36+F39+F42+F45+F48+F51+F54+F57+F60+F63+F66+F69+F72+F75+F78+F81+F84+F87+F90 -> 0 | J93: =J15+J18+J21+J24+J27+J30+J33+J36+J39+J42+J45+J48+J51+J54+J57+J60+J63+J66+J69+J72+J75+J78+J81+J84+J87+J90 -> 0 | N93: =N15+N18+N21+N24+N27+N30+N33+N36+N39+N42+N45+N48+N51+N54+N57+N60+N63+N66+N69+N72+N75+N78+N81+N84+N87+N90 -> 0
A94: F | B94: PERCENTUAIS: | F94: =IFERROR(F93/D93,"") ->  | J94: =IFERROR(J93/D93,"") ->  | N94: =SUM(F94:M94) -> 0
A95: F | B95: TOTAIS ACUMULADOS: | F95: =F93 -> 0 | J95: =F95+J93 -> 0
A96: F | B96: PERCENTUAIS ACUMULADOS: | F96: =F94 ->  | J96: =IFERROR(F96+J94,"") -> 
A97: F
A98: F | B98: OBSERVAÇÕES:
A99: F | B99: Os pagamentos somente poderão ser efetuados mediante medição e atesto pelos técnicos da Secretaria da Educação.

Sheet Composição BDI
A3: UNIDADE ESCOLAR
A4: =Orçamento!$O$4 -> CENTRO DE ENSINO EM PERÍODO INTEGRAL PROFESSOR PEDRO GOMES
A6: OBRA
A7: =Orçamento!$O$7 -> REFORMA
A9: ENDEREÇO
A10: =Orçamento!$R$10 -> AV SERGIPE C/ BENJAMIN CONSTANT S/N, SETOR CAMPINAS, CEP:74550-408
A12: CIDADE
A13: =Orçamento!$V$7 -> GOIÂNIA
A15: CRE
A16: =Orçamento!$O$10 -> GOIÂNIA
A18: DETALHAMENTO DA COMPOSIÇÃO DE BDI
A19: COMPOSIÇÃO BDI PARA OBRAS CIVIS | F19: BDI CONSTRUÇÃO E REFORMA
A20: DESCRIÇÃO | B20: COEF. | C20: TAXA % (a.m) | D20: % no preço de venda | F20: Situação | G20: 1º Quartil | H20: Médio | I20: 3º Quartil
A21: 1) COFINS | B21: 1 | C21: 0.03 | D21: =C21 -> 0.03 | F21: =IF(OR(C21<G21,C21>I21),"FORA DO INTERVALO","OK") -> OK | G21: 0.03 | H21: 0.03 | I21: 0.03
A22: 2) PIS | B22: 1 | C22: 0.0065 | D22: =C22 -> 0.0065 | F22: =IF(OR(C22<G22,C22>I22),"FORA DO INTERVALO","OK") -> OK | G22: 0.0065 | H22: 0.0065 | I22: 0.0065
A23: 3) ISSQN | B23: 1 | C23: 0.03 | D23: =C23*B23 -> 0.03 | F23: OK | G23: 0.02 | H23: 0.035 | I23: 0.05
A24: 4) CPRB | B24: 1 | C24: 0.045 | D24: =C24 -> 0.045 | F24: OK | G24: 0.045 | H24: 0.045 | I24: 0.045
A25: 5) Administração Central | B25: 1 | C25: 0.04 | D25: 0.04 | F25: OK | G25: 0.03 | H25: 0.04 | I25: 0.055
A26: 6) Despesas Financeiras | B26: 1 | C26: 0.0056 | D26: 0.0056 | F26: FORA DO INTERVALO | G26: 0.0059 | H26: 0.0123 | I26: 0.0139
A27: 7) Seguros + Garantias | B27: 1 | C27: 0.0012 | D27: 0.0012 | F27: FORA DO INTERVALO | G27: 0.008 | H27: 0.008 | I27: 0.01
A28: 8) Risco | B28: 1 | C28: 0.0097 | D28: 0.0097 | F28: OK | G28: 0.0097 | H28: 0.0127 | I28: 0.0127
A29: 9) Lucro | B29: 1 | C29: 0.072 | D29: 0.072 | F29: OK | G29: 0.0616 | H29: 0.074 | I29: 0.0896
A30: BDI - FINAL | D30: =(((1+D25+D27+D28)*(1+D26)*(1+D29))/(1-(D21+D22+D23+D24))-1) -> 0.2750405885 | F30: =IF(OR(D30<G30,D30>I30),"FORA DO INTERVALO","OK") -> FORA DO INTERVALO | G30: 0.2034 | H30: 0.2212 | I30: 0.25
A32: Notas:
A33: (1) e (2) Alíquota definida por lei.
A34: (3) Alíquota e base de cálculo definidas pela legislação municipal.
A35: (4) Alíquota definida pelas leis 12.546/11, 12844/13 e 13.161/15 (CPRB – contribuição previdenciária sobre a receita bruta).
A36: (5) Valores definidos a partir dos limites no Acórdão nº 2.622/2013 - TCU – Plenário. Valores entre o 1º e 3º quartis.
A37: (6) Valor calculado pela expressão matemática do acórdão 2.369/2011 – TCU – Plenário e disponibilizado pela AGETOP em dezembro de 2018. (Foi utilizado para o cálculo a média da Taxa SELIC no período de 11/2017 a 10/2018)
A39: (7) Valores definidos pela AGETOP a partir dos limites no Acórdão nº 2.622/2013 - TCU – Plenário. Valores médios. Observação da AGETOP: (Seguros contra erros de execução, incêndio e explosão, danos da natureza (vendaval, destelhamento, alagamento, inundação, desmoronamento, geadas etc.), emprego de material defeituoso ou inadequado, roubo e/ou furto qualificado, quebra de equipamentos, desmoronamento de estrutura, nas modalidades de Obras Civis em Construção (OCC); Instalação e Montagem (IM); e Obras Civis em Construção e Instalação e Montagem (OCC/IM). Bem como coberturas adicionais para ampliação dessas coberturas básicas, como: cobertura de responsabilidade civil geral, cobertura de responsabilidade civil cruzada, cobertura de despesas extraordinárias, cobertura de tumultos, cobertura de desentulho do local, cobertura de riscos do fabricante, dentre outras, incluindo o seguro de vida em grupo regido pela convenção coletiva dos trabalhadores na indústria da construção civil). A partir de 24/02/2015 por intermédio da Portaria 449/2015 a Presidência da AGETOP, na pessoa do Senhor Jayme Eduardo Rincon, determinou a exclusão dos valores referentes aos Seguros de Risco de Engenharia e Responsabilidade Civil do Profissional na composição do cálculo do B.D.I..
A40: (8) Valores definidos a partir dos limites no Acórdão nº 2.622/2013 - TCU – Plenário. Valores entre 1º e 3° quartis.
A41: (9) Valores definidos a partir dos limites definidos no Acórdão nº 2.622/2013 - TCU – Plenário. Valores adotados e praticados no mercado ( “ ex ante ” ) ou aqueles entre os 1º e 3º quartis.
A43: (*) A fórmula para estipulação da taxa de BDI estimado adotado é a mesma que foi aplicada para a obtenção das tabelas contidas no Acórdão n. 2.622/2013 – TCUPlenário
A45: Obs.: Para obras com valores superiores a R$ 20.000.000,00 sugere-se recalcular o BDI, dimensionando as taxas de administração central e lucro para patamares inferiores ao estipulado acima.

Sheet Relatório CENTRAL
B3: UNIDADE ESCOLAR | D3: CIDADE
B4: =Orçamento!$O$4 -> CENTRO DE ENSINO EM PERÍODO INTEGRAL PROFESSOR PEDRO GOMES | D4: =Orçamento!$V$7 -> GOIÂNIA
B6: OBRA | D6: CRE
B7: =Orçamento!$O$7 -> REFORMA | D7: =Orçamento!$O$10 -> GOIÂNIA
B9: ENDEREÇO | D9: DATA
A10: FILTRO | B10: =Orçamento!$R$10 -> AV SERGIPE C/ BENJAMIN CONSTANT S/N, SETOR CAMPINAS, CEP:74550-408 | D10: =Orçamento!$S$7 -> 2020-03-25
B12: RELATÓRIO CENTRAL
A13: ↓ | B13: CÓDIGO | C13: ETAPA | D13: PREÇO (R$) C/ BDI | E13: PARTIC ( % )
A14: =IF(D14>0,"F","") ->  | B14: =Orçamento!O298 -> a. | C14: =Orçamento!P298 -> SERVIÇOS PRELIMINARES | D14: =Orçamento!V298 -> 0 | E14: =Orçamento!X298 -> 0
A15: =IF(D15>0,"F","") ->  | B15: =Orçamento!O299 -> b. | C15: =Orçamento!P299 -> TRANSPORTES | D15: =Orçamento!V299 -> 0 | E15: =Orçamento!X299 -> 0
B16: =Orçamento!O300 -> c. | C16: =Orçamento!P300 -> SERVIÇO EM TERRA | D16: =Orçamento!V300 -> 0 | E16: =Orçamento!X300 -> 0
B17: =Orçamento!O301 -> d. | C17: =Orçamento!P301 -> FUNDAÇÕES E SONDAGENS | D17: =Orçamento!V301 -> 0 | E17: =Orçamento!X301 -> 0
B18: =Orçamento!O302 -> e. | C18: =Orçamento!P302 -> ESTRUTURA | D18: =Orçamento!V302 -> 0 | E18: =Orçamento!X302 -> 0
B19: =Orçamento!O303 -> f. | C19: =Orçamento!P303 -> INSTALAÇÕES ELÉTRICAS | D19: =Orçamento!V303 -> 0 | E19: =Orçamento!X303 -> 0
B20: =Orçamento!O304 -> g. | C20: =Orçamento!P304 -> INSTALAÇÕES HIDROSSANITÁRIAS | D20: =Orçamento!V304 -> 0 | E20: =Orçamento!X304 -> 0
B21: =Orçamento!O305 -> h | C21: =Orçamento!P305 -> INSTALAÇÕES ESPECIAIS | D21: =Orçamento!V305 -> 0 | E21: =Orçamento!X305 -> 0
B22: =Orçamento!O306 -> i. | C22: =Orçamento!P306 -> ALVENARIAS E DIVISÓRIAS | D22: =Orçamento!V306 -> 0 | E22: =Orçamento!X306 -> 0
B23: =Orçamento!O307 -> j. | C23: =Orçamento!P307 -> ALVENARIA AUTO-PORTANTE | D23: =Orçamento!V307 -> 0 | E23: =Orçamento!X307 -> 0
B24: =Orçamento!O308 -> k. | C24: =Orçamento!P308 -> IMPERMEABILIZAÇÃO | D24: =Orçamento!V308 -> 0 | E24: =Orçamento!X308 -> 0
B25: =Orçamento!O309 -> l. | C25: =Orçamento!P309 -> ISOLAMENTO TÉRMICO E ACÚSTICO | D25: =Orçamento!V309 -> 0 | E25: =Orçamento!X309 -> 0
B26: =Orçamento!O310 -> m. | C26: =Orçamento!P310 -> ESTRUTURA DE MADEIRA | D26: =Orçamento!V310 -> 0 | E26: =Orçamento!X310 -> 0
B27: =Orçamento!O311 -> n. | C27: =Orçamento!P311 -> ESTRUTURAS METÁLICAS | D27: =Orçamento!V311 -> 0 | E27: =Orçamento!X311 -> 0
B28: =Orçamento!O312 -> o. | C28: =Orçamento!P312 -> COBERTURAS | D28: =Orçamento!V312 -> 0 | E28: =Orçamento!X312 -> 0
B29: =Orçamento!O313 -> p. | C29: =Orçamento!P313 -> ESQUADRIAS DE MADEIRA | D29: =Orçamento!V313 -> 0 | E29: =Orçamento!X313 -> 0
B30: =Orçamento!O314 -> q. | C30: =Orçamento!P314 -> ESQUADRIAS METÁLICAS | D30: =Orçamento!V314 -> 0 | E30: =Orçamento!X314 -> 0
B31: =Orçamento!O315 -> r. | C31: =Orçamento!P315 -> VIDROS | D31: =Orçamento!V315 -> 0 | E31: =Orçamento!X315 -> 0
B32: =Orçamento!O316 -> s. | C32: =Orçamento!P316 -> REVESTIMENTO DE PAREDE | D32: =Orçamento!V316 -> 0 | E32: =Orçamento!X316 -> 0
B33: =Orçamento!O317 -> t. | C33: =Orçamento!P317 -> FORROS | D33: =Orçamento!V317 -> 0 | E33: =Orçamento!X317 -> 0
B34: =Orçamento!O318 -> u. | C34: =Orçamento!P318 -> REVESTIMENTO DE PISO | D34: =Orçamento!V318 -> 0 | E34: =Orçamento!X318 -> 0
B35: =Orçamento!O319 -> v. | C35: =Orçamento!P319 -> FERRAGENS | D35: =Orçamento!V319 -> 0 | E35: =Orçamento!X319 -> 0
B36: =Orçamento!O320 -> w. | C36: =Orçamento!P320 -> MARCENARIA | D36: =Orçamento!V320 -> 0 | E36: =Orçamento!X320 -> 0
B37: =Orçamento!O321 -> x. | C37: =Orçamento!P321 -> ADMINISTRAÇÃO | D37: =Orçamento!V321 -> 0 | E37: =Orçamento!X321 -> 0
B38: =Orçamento!O322 -> y. | C38: =Orçamento!P322 -> PINTURA | D38: =Orçamento!V322 -> 0 | E38: =Orçamento!X322 -> 0
B39: =Orçamento!O323 -> z. | C39: =Orçamento!P323 -> DIVERSOS | D39: =Orçamento!V323 -> 0 | E39: =Orçamento!X323 -> 0
A40: F | B40: TOTAL GERAL DO ORÇAMENTO (R$) C/BDI | D40: =SUM(D14:D39) -> 0 | E40: =SUM(E14:E39) -> 0

Sheet Parc Maior Relev
B3: UNIDADE ESCOLAR | E3: CÓDIGO INEP
B4: =Orçamento!$O$4 -> CENTRO DE ENSINO EM PERÍODO INTEGRAL PROFESSOR PEDRO GOMES | E4: =Orçamento!$V$4 -> 52033597
B6: OBRA | E6: CIDADE
B7: =Orçamento!$O$7 -> REFORMA | E7: =Orçamento!$V$7 -> GOIÂNIA
B9: CRE | E9: ÁREA TOTAL CONSTRUÍDA (M²)
B10: =Orçamento!$O$10 -> GOIÂNIA | E10: =Orçamento!$S$13 -> 5317.06
A11: FILTRO
B12: PARCELA DE MAIOR RELEVÂNCIA
B13: CÓDIGO | C13: SERVIÇO | D13: DESCRIÇÃO | E13: UNID | F13: QUANT | G13: PARC. MAIOR RELEV (100%)
A14: =IF(F14>0,"F","") ->  | B14: 70000 | C14: INSTALAÇÕES ELÉTRICAS | D14: INSTALAÇÕES ELÉTRICAS | E14: KVA | F14: =SUMIF(Orçamento!$R$20:$R$279,'Parc Maior Relev'!D14,Orçamento!$T$20:$T$279) -> 0 | G14: =F14*0.5 -> 0
B15: 70000 | C15: INSTALAÇÕES ELÉTRICAS | D15: SUBESTAÇÃO | E15: KVA | F15: 150 | G15: =F15 -> 150
B16: 80000 | C16: INSTALAÇÕES HIDROSSANITÁRIAS | D16: RESERVATÓRIO | E16: UNID | F16: =SUMIF(Orçamento!$R$20:$R$279,'Parc Maior Relev'!D16,Orçamento!$T$20:$T$279) -> 0 | G16: =F16*0.5 -> 0 | H16: 1
B17: CÓDIGO | C17: SERVIÇO | D17: DESCRIÇÃO | E17: UNID | F17: QUANT | G17: PARC. MAIOR RELEV (50%)
B18: 160000 | C18: COBERTURAS | D18: TELHA CERÂMICA | E18: M2 | F18: =Orçamento!T221 -> 208.48 | G18: =F18*0.5 -> 104.24
B19: 160000 | C19: COBERTURAS | D19: TELHA FIBROCIMENTO | E19: M2 | F19: =Orçamento!T224 -> 2311.13 | G19: 1155.565
B20: 160000 | C20: COBERTURAS | D20: TELHA METÁLICA | E20: M2 | F20: =SUMIF(Orçamento!$R$20:$R$279,'Parc Maior Relev'!D20,Orçamento!$T$20:$T$279) -> 0 | G20: 0
B21: 200000 | C21: REVESTIMENTO DE PAREDE | D21: REBOCO | E21: M2 | F21: =SUMIF(Orçamento!$R$20:$R$279,'Parc Maior Relev'!D21,Orçamento!$T$20:$T$279) -> 0 | G21: =F21*0.5 -> 0
B22: 200000 | C22: REVESTIMENTO DE PAREDE | D22: REVESTIMENTO CERÂMICO | E22: M2 | F22: =SUMIF(Orçamento!$R$20:$R$279,'Parc Maior Relev'!D22,Orçamento!$T$20:$T$279) -> 0 | G22: 0
B23: 210000 | C23: FORROS | D23: FORRO DE GESSO | E23: M2 | F23: =SUMIF(Orçamento!$R$20:$R$279,'Parc Maior Relev'!D23,Orçamento!$T$20:$T$279) -> 0 | G23: =F23*0.5 -> 0
B24: 210000 | C24: FORROS | D24: FORRO PVC | E24: M2 | F24: =SUMIF(Orçamento!$R$20:$R$279,'Parc Maior Relev'!D24,Orçamento!$T$20:$T$279) -> 0 | G24: 0
B25: 210000 | C25: FORROS | D25: FORRO ACARTONADO | E25: M2 | F25: =SUMIF(Orçamento!$R$20:$R$279,'Parc Maior Relev'!D25,Orçamento!$T$20:$T$279) -> 0 | G25: 0
B26: 220000 | C26: REVESTIMENTO DE PISO | D26: PISO GRANITINA | E26: M2 | F26: =Orçamento!T238 -> 122.3034 | G26: 61.1517
B27: 220000 | C27: REVESTIMENTO DE PISO | D27: PISO LAMINADO | E27: M2 | F27: =SUMIF(Orçamento!$R$20:$R$279,'Parc Maior Relev'!D27,Orçamento!$T$20:$T$279) -> 0 | G27: 0
B28: 220000 | C28: REVESTIMENTO DE PISO | D28: PISO CONCRETO DESEMPENADO | E28: M2 | F28: =Orçamento!T241 -> 1550.38 | G28: 775.19
B29: 220000 | C29: REVESTIMENTO DE PISO | D29: PISO CERÂMICO | E29: M2 | F29: =SUMIF(Orçamento!$R$20:$R$279,'Parc Maior Relev'!D29,Orçamento!$T$20:$T$279) -> 0 | G29: =F29*0.5 -> 0
B30: 260000 | C30: PINTURA | D30: PINTURA | E30: M2 | F30: =SUMIF(Orçamento!$R$20:$R$279,'Parc Maior Relev'!D30,Orçamento!$T$20:$T$279) -> 0 | G30: 0
A31: F
A32: F | B32: (*) Para os fins do inciso I dp § 1º do Art. 30 da Lei Federal 8.666/93, são consideradas parcelas de maior relevância técnica as execuções apresentadas
A33: F

Sheet Composições
A4: UNIDADE ESCOLAR | H4: CÓDIGO INEP
A5: =Orçamento!$O$4 -> CENTRO DE ENSINO EM PERÍODO INTEGRAL PROFESSOR PEDRO GOMES | H5: =Orçamento!$V$4 -> 52033597
A7: OBRA | H7: CIDADE
A8: =Orçamento!$O$7 -> REFORMA | H8: =Orçamento!$V$7 -> GOIÂNIA
A10: CRE | D10: ENDEREÇO | H10: REFERÊNCIA AGETOP
A11: =Orçamento!$O$10 -> GOIÂNIA | D11: =Orçamento!$R$10 -> AV SERGIPE C/ BENJAMIN CONSTANT S/N, SETOR CAMPINAS, CEP:74550-408 | H11: =Orçamento!$V$10 -> DEZ/18 | I11: =Orçamento!$W$10 -> DESONERADA
A13: DATA | D13: ÁREA TOTAL CONSTRUÍDA (M²) | H13: REFERÊNCIA SINAPI
A14: =Orçamento!$S$7 -> 2020-03-25 | D14: =Orçamento!$S$13 -> 5317.06 | H14: =Orçamento!$V$13 -> JUN/19 | I14: =Orçamento!$W$13 -> DESONERADA
A16: COMPOSIÇÕES DE CUSTOS UNITÁRIOS - SEE-GO
A17: 46 | B17: FONTE | C17: CÓDIGO | D17: DESCRIÇÃO | E17: UNIDADE | F17: COEFIC. | G17: CUSTO UNITÁRIO | I17: CUSTO TOTAL (A) + (B) + (C) + (D) + (E)
G18: DESONERADO | H18: NÃO DESONER. | I18: DESONERADO | J18: NÃO DESONER.
B19: COMPOSIÇÃO | C19: COMP 046_SEE | D19: CAPUZ PARA PROTEÇÃO DOS PARA RAIOS | E19: UN | I19: 16.53 | J19: 16.65
B20: AGETOP_I | C20: 8 | D20: AJUDANTE | E20: h | F20: 0.0333 | G20: 8.2 | H20: 9.51 | I20: 0.27 | J20: 0.32
B21: AGETOP_I | C21: 12 | D21: ELETRICISTA | E21: h | F21: 0.0333 | G21: 13.4 | H21: 15.53 | I21: 0.45 | J21: 0.52
G22: 0 | H22: 0 | I22: 0 | J22: 0
B23: MÃO DE OBRA (B) - TOTAL | I23: 0.72 | J23: 0.84
B24: COTAÇÃO | C24: COT 010_SEE | D24: CAPUZ PARA PROTEÇÃO DOS PARA RAIOS | E24: UN | F24: 1 | G24: 15.81 | H24: 15.81 | I24: 15.81 | J24: 15.81
G25: 0 | H25: 0 | I25: 0 | J25: 0
G26: 0 | H26: 0 | I26: 0 | J26: 0
B27: MATERIAL (C) - TOTAL | I27: 15.81 | J27: 15.81
A29: 47 | B29: FONTE | C29: CÓDIGO | D29: DESCRIÇÃO | E29: UNIDADE | F29: COEFIC. | G29: CUSTO UNITÁRIO | I29: CUSTO TOTAL (A) + (B) + (C) + (D) + (E)
G30: DESONERADO | H30: NÃO DESONER. | I30: DESONERADO | J30: NÃO DESONER.
B31: COMPOSIÇÃO | C31: COMP 047_SEE | D31: CAPUZ DE PROTEÇÃO PARA BUCHA DE TRANSFORMADOR | E31: UN | I31: 16.53 | J31: 16.65
B32: AGETOP_I | C32: 8 | D32: AJUDANTE | E32: h | F32: 0.0333 | G32: 8.2 | H32: 9.51 | I32: 0.27 | J32: 0.32
B33: AGETOP_I | C33: 12 | D33: ELETRICISTA | E33: h | F33: 0.0333 | G33: 13.4 | H33: 15.53 | I33: 0.45 | J33: 0.52
G34: 0 | H34: 0 | I34: 0 | J34: 0
B35: MÃO DE OBRA (B) - TOTAL | I35: 0.72 | J35: 0.84
B36: COTAÇÃO | C36: COT 011_SEE | D36: CAPUZ DE PROTEÇÃO PARA BUCHA DE TRANSFORMADOR | E36: UN | F36: 1 | G36: 15.81 | H36: 15.81 | I36: 15.81 | J36: 15.81
G37: 0 | H37: 0 | I37: 0 | J37: 0
G38: 0 | H38: 0 | I38: 0 | J38: 0
B39: MATERIAL (C) - TOTAL | I39: 15.81 | J39: 15.81
A41: 48 | B41: FONTE | C41: CÓDIGO | D41: DESCRIÇÃO | E41: UNIDADE | F41: COEFIC. | G41: CUSTO UNITÁRIO | I41: CUSTO TOTAL (A) + (B) + (C) + (D) + (E)
G42: DESONERADO | H42: NÃO DESONER. | I42: DESONERADO | J42: NÃO DESONER.
B43: COMPOSIÇÃO | C43: COMP 048_SEE | D43: HASTE ROSQUEADA "TIRANTE" 3/8" | E43: M | I43: 14.02 | J43: 15.39
B44: AGETOP_I | C44: 8 | D44: AJUDANTE | E44: h | F44: 0.4 | G44: 8.2 | H44: 9.51 | I44: 3.28 | J44: 3.8
B45: AGETOP_I | C45: 12 | D45: ELETRICISTA | E45: h | F45: 0.4 | G45: 13.4 | H45: 15.53 | I45: 5.36 | J45: 6.21
G46: 0 | H46: 0 | I46: 0 | J46: 0
B47: MÃO DE OBRA (B) - TOTAL | I47: 8.64 | J47: 10.01
B48: COTAÇÃO | C48: COT 012_SEE | D48: HASTE ROSQUEADA "TIRANTE" 3/8" | E48: M | F48: 1 | G48: 5.383333333 | H48: 5.383333333 | I48: 5.38 | J48: 5.38
G49: 0 | H49: 0 | I49: 0 | J49: 0
G50: 0 | H50: 0 | I50: 0 | J50: 0
B51: MATERIAL (C) - TOTAL | I51: 5.38 | J51: 5.38
A53: 49 | B53: FONTE | C53: CÓDIGO | D53: DESCRIÇÃO | E53: UNIDADE | F53: COEFIC. | G53: CUSTO UNITÁRIO | I53: CUSTO TOTAL (A) + (B) + (C) + (D) + (E)
G54: DESONERADO | H54: NÃO DESONER. | I54: DESONERADO | J54: NÃO DESONER.
B55: COMPOSIÇÃO | C55: COMP 049_SEE | D55: PORCA SEXTAVADA 3/8" | E55: UN | I55: 0.2 | J55: 0.22
B56: AGETOP_I | C56: 8 | D56: AJUDANTE | E56: h | F56: 0.009 | G56: 8.2 | H56: 9.51 | I56: 0.07 | J56: 0.09
G57: 0 | H57: 0 | I57: 0 | J57: 0
G58: 0 | H58: 0 | I58: 0 | J58: 0
B59: MÃO DE OBRA (B) - TOTAL | I59: 0.07 | J59: 0.09
B60: COTAÇÃO | C60: COT 013_SEE | D60: PORCA SEXTAVADA 3/8" | E60: UN | F60: 1 | G60: 0.13 | H60: 0.13 | I60: 0.13 | J60: 0.13
G61: 0 | H61: 0 | I61: 0 | J61: 0
G62: 0 | H62: 0 | I62: 0 | J62: 0
B63: MATERIAL (C) - TOTAL | I63: 0.13 | J63: 0.13
A65: 557 | B65: FONTE | C65: CÓDIGO | D65: DESCRIÇÃO | E65: UNID | F65: COEFIC. | G65: CUSTO UNITÁRIO | I65: CUSTO TOTAL (A) + (B) + (C) + (D) + (E)
G66: DESONERADO | H66: NÃO DESONER. | I66: DESONERADO | J66: NÃO DESONER.
B67: COMPOSIÇÃO | C67: COMP 557_SEE | D67: BOMBA THSI-18 10,0 CV TRIFÁSICA | E67: UN | F67: - | G67: - | H67: - | I67: 5193.73 | J67: 5221.25
B68: AGETOP_I | C68: 8 | D68: AJUDANTE | E68: h | F68: 8 | G68: 8.2 | H68: 9.51 | I68: 65.6 | J68: 76.08
B69: AGETOP_I | C69: 12 | D69: ELETRICISTA | E69: h | F69: 8 | G69: 13.4 | H69: 15.53 | I69: 107.2 | J69: 124.24
G70: 0 | H70: 0 | I70: 0 | J70: 0
B71: MÃO DE OBRA (B) - TOTAL | I71: 172.8 | J71: 200.32
B72: COTAÇÃO | C72: COT 302_SEE | D72: BOMBA THSI-18 10,0 CV TRIFÁSICA | E72: UN | F72: 1 | G72: 5020.925 | H72: 5020.925 | I72: 5020.93 | J72: 5020.93
G73: 0 | H73: 0 | I73: 0 | J73: 0
G74: 0 | H74: 0 | I74: 0 | J74: 0
B75: MATERIAL (C) - TOTAL | I75: 5020.93 | J75: 5020.93
A77: 17 | B77: FONTE | C77: CÓDIGO | D77: DESCRIÇÃO | E77: UNIDADE | F77: COEFIC. | G77: CUSTO UNITÁRIO | I77: CUSTO TOTAL (A) + (B) + (C) + (D) + (E)
G78: DESONERADO | H78: NÃO DESONER. | I78: DESONERADO | J78: NÃO DESONER.
B79: COMPOSIÇÃO | C79: COMP 017_SEE | D79: REDUCAO GIRATÓRIA TIPO STORZ LATAO P/ INST. PREDIAL COMBATE A INCENDIO ENGATE RAPIDO 2.1/2" X 1.1/2" | E79: UN | G79: - | H79: - | I79: 108.44 | J79: 108.99
B80: AGETOP_I | C80: 8 | D80: AJUDANTE | E80: h | F80: 0.16 | G80: 8.2 | H80: 9.51 | I80: 1.31 | J80: 1.52
B81: AGETOP_I | C81: 11 | D81: ENCANADOR | E81: h | F81: 0.16 | G81: 13.4 | H81: 15.53 | I81: 2.14 | J81: 2.48
G82: 0 | H82: 0 | I82: 0 | J82: 0
B83: MÃO DE OBRA (B) - TOTAL | I83: 3.45 | J83: 4
B84: SINAPI_I | C84: 20972 | D84: REDUCAO FIXA TIPO STORZ, ENGATE RAPIDO 2.1/2" X 1.1/2", EM LATAO, PARA INSTALACAO PREDIAL COMBATE A INCENDIO PREDIAL | E84: UN | F84: 1 | G84: 104.99 | H84: 104.99 | I84: 104.99 | J84: 104.99
G85: 0 | H85: 0 | I85: 0 | J85: 0
G86: 0 | H86: 0 | I86: 0 | J86: 0
B87: MATERIAL (C) - TOTAL | I87: 104.99 | J87: 104.99
A89: 18 | B89: FONTE | C89: CÓDIGO | D89: DESCRIÇÃO | E89: UNIDADE | F89: COEFIC. | G89: CUSTO UNITÁRIO | I89: CUSTO TOTAL (A) + (B) + (C) + (D) + (E)
G90: DESONERADO | H90: NÃO DESONER. | I90: DESONERADO | J90: NÃO DESONER.
B91: COMPOSIÇÃO | C91: COMP 018_SEE | D91: CHAVE DUPLA P/ CONEXÕES TIPO STORZ EM LATÃO ENGATE RÁPIDO 1 1/2" X 2 1/2" | E91: UN | G91: - | H91: - | I91: 16 | J91: 16.32
B92: AGETOP_I | C92: 11 | D92: ENCANADOR | E92: h | F92: 0.15 | G92: 13.4 | H92: 15.53 | I92: 2.01 | J92: 2.33
G93: 0 | H93: 0 | I93: 0 | J93: 0
G94: 0 | H94: 0 | I94: 0 | J94: 0
B95: MÃO DE OBRA (B) - TOTAL | I95: 2.01 | J95: 2.33
B96: SINAPI_I | C96: 20971 | D96: CHAVE DUPLA PARA CONEXOES TIPO STORZ, ENGATE RAPIDO 1 1/2" X 2 1/2", EM LATAO, PARA INSTALACAO PREDIAL COMBATE A INCENDIO | E96: UN | F96: 1 | G96: 13.99 | H96: 13.99 | I96: 13.99 | J96: 13.99
G97: 0 | H97: 0 | I97: 0 | J97: 0
G98: 0 | H98: 0 | I98: 0 | J98: 0
B99: MATERIAL (C) - TOTAL | I99: 13.99 | J99: 13.99
A101: 87 | B101: FONTE | C101: CÓDIGO | D101: DESCRIÇÃO | E101: UNIDADE | F101: COEFIC. | G101: CUSTO UNITÁRIO | I101: CUSTO TOTAL (A) + (B) + (C) + (D) + (E)
G102: DESONERADO | H102: NÃO DESONER. | I102: DESONERADO | J102: NÃO DESONER.
B103: COMPOSIÇÃO | C103: COMP 087_SEE | D103: REGISTRO DE GAVETA COM HASTE ASCENDENTE DE BRONZE 2 1/2" | E103: UN | I103: 257.3 | J103: 261.26
B104: AGETOP_I | C104: 8 | D104: AJUDANTE | E104: h | F104: 1.15 | G104: 8.2 | H104: 9.51 | I104: 9.43 | J104: 10.94
B105: AGETOP_I | C105: 11 | D105: ENCANADOR | E105: h | F105: 1.15 | G105: 13.4 | H105: 15.53 | I105: 15.41 | J105: 17.86
G106: 0 | H106: 0 | I106: 0 | J106: 0
B107: MÃO DE OBRA (B) - TOTAL | I107: 24.84 | J107: 28.8
B108: AGETOP_I | C108: H689 | D108: FITA VEDAROSCA 12 MM | E108: m | F108: 2.82 | G108: 0.28 | H108: 0.28 | I108: 0.79 | J108: 0.79
B109: COTAÇÃO | C109: COT 017_SEE | D109: REGISTRO DE GAVETA COM HASTE ASCENDENTE DE BRONZE 2 1/2" | E109: UN | F109: 1 | G109: 231.6666667 | H109: 231.6666667 | I109: 231.67 | J109: 231.67
G110: 0 | H110: 0 | I110: 0 | J110: 0
B111: MATERIAL (C) - TOTAL | I111: 232.46 | J111: 232.46
A113: 19 | B113: FONTE | C113: CÓDIGO | D113: DESCRIÇÃO | E113: UNIDADE | F113: COEFIC. | G113: CUSTO UNITÁRIO | I113: CUSTO TOTAL (A) + (B) + (C) + (D) + (E)
G114: DESONERADO | H114: NÃO DESONER. | I114: DESONERADO | J114: NÃO DESONER.
B115: COMPOSIÇÃO | C115: COMP 019_SEE | D115: TAMPÃO LATAO C/ CORRENTE P/ INSTALAÇÃO PREDIAL COMBATE A INCÊNDIO ENGATE RÁPIDO 1 1/2" | E115: UN | G115: - | H115: - | I115: 60.63 | J115: 61.15
B116: AGETOP_I | C116: 11 | D116: ENCANADOR | E116: h | F116: 0.15 | G116: 13.4 | H116: 15.53 | I116: 2.01 | J116: 2.33
B117: AGETOP_I | C117: 8 | D117: AJUDANTE | E117: h | F117: 0.15 | G117: 8.2 | H117: 9.51 | I117: 1.23 | J117: 1.43
G118: 0 | H118: 0 | I118: 0 | J118: 0
B119: MÃO DE OBRA (B) - TOTAL | I119: 3.24 | J119: 3.76
B120: SINAPI_I | C120: 20964 | D120: TAMPAO COM CORRENTE, EM LATAO, ENGATE RAPIDO 1 1/2", PARA INSTALACAO PREDIAL DE COMBATE A INCENDIO | E120: UN | F120: 1 | G120: 57.39 | H120: 57.39 | I120: 57.39 | J120: 57.39
G121: 0 | H121: 0 | I121: 0 | J121: 0
G122: 0 | H122: 0 | I122: 0 | J122: 0
B123: MATERIAL (C) - TOTAL | I123: 57.39 | J123: 57.39
A125: 30 | B125: FONTE | C125: CÓDIGO | D125: DESCRIÇÃO | E125: UNIDADE | F125: COEFIC. | G125: CUSTO UNITÁRIO | I125: CUSTO TOTAL (A) + (B) + (C) + (D) + (E)
G126: DESONERADO | H126: NÃO DESONER. | I126: DESONERADO | J126: NÃO DESONER.
B127: COMPOSIÇÃO | C127: COMP 030_SEE | D127: COTOVELO DE FERRO GALV. 90° X 2 1/2" | E127: UN | I127: 67.98 | J127: 71.15
B128: AGETOP_I | C128: 8 | D128: AJUDANTE | E128: h | F128: 0.92 | G128: 8.2 | H128: 9.51 | I128: 7.54 | J128: 8.75
B129: AGETOP_I | C129: 11 | D129: ENCANADOR | E129: h | F129: 0.92 | G129: 13.4 | H129: 15.53 | I129: 12.33 | J129: 14.29
B130: MÃO DE OBRA (B) - TOTAL | I130: 19.87 | J130: 23.04
B131: SINAPI_I | C131: 3470 | D131: COTOVELO 90 GRAUS DE FERRO GALVANIZADO, COM ROSCA BSP, DE 2 1/2" | E131: UN | F131: 1 | G131: 47.55 | H131: 47.55 | I131: 47.55 | J131: 47.55
B132: AGETOP_I | C132: H689 | D132: FITA VEDAROSCA 12 MM | E132: m | F132: 2 | G132: 0.28 | H132: 0.28 | I132: 0.56 | J132: 0.56
B133: MATERIAL (C) - TOTAL | I133: 48.11 | J133: 48.11
A135: 77 | B135: FONTE | C135: CÓDIGO | D135: DESCRIÇÃO | E135: UNIDADE | F135: COEFIC. | G135: CUSTO UNITÁRIO | I135: CUSTO TOTAL (A) + (B) + (C) + (D) + (E)
G136: DESONERADO | H136: NÃO DESONER. | I136: DESONERADO | J136: NÃO DESONER.
B137: COMPOSIÇÃO | C137: COMP 077_SEE | D137: UNIAO FERRO GALV C/ASSENTO CONICO BRONZE 2 1/2" | E137: UN | I137: 144.93 | J137: 146.3
B138: AGETOP_I | C138: 8 | D138: AJUDANTE | E138: h | F138: 0.4 | G138: 8.2 | H138: 9.51 | I138: 3.28 | J138: 3.8
B139: AGETOP_I | C139: 11 | D139: ENCANADOR | E139: h | F139: 0.4 | G139: 13.4 | H139: 15.53 | I139: 5.36 | J139: 6.21
B140: MÃO DE OBRA (B) - TOTAL | I140: 8.64 | J140: 10.01
B141: AGETOP_I | C141: H689 | D141: FITA VEDAROSCA 12 MM | E141: m | F141: 2.4 | G141: 0.28 | H141: 0.28 | I141: 0.67 | J141: 0.67
B142: SINAPI_I | C142: 12427 | D142: UNIAO COM ASSENTO CONICO DE BRONZE, DIAMETRO 2 1/2" | E142: UN | F142: 1 | G142: 135.62 | H142: 135.62 | I142: 135.62 | J142: 135.62
B143: MATERIAL (C) - TOTAL | I143: 136.29 | J143: 136.29
A145: 549 | B145: FONTE | C145: CÓDIGO | D145: DESCRIÇÃO | E145: UNID | F145: COEFIC. | G145: CUSTO UNITÁRIO | I145: CUSTO TOTAL (A) + (B) + (C) + (D) + (E)
G146: DESONERADO | H146: NÃO DESONER. | I146: DESONERADO | J146: NÃO DESONER.
B147: COMPOSIÇÃO | C147: COMP 549_SEE | D147: FLANGE GALVANIZADA 2.1/2" - FORNECIMENTO E INSTALAÇÃO | E147: UN | F147: - | G147: - | H147: - | I147: 160.27 | J147: 161.22
B148: SINAPI | C148: 88248 | D148: AUXILIAR DE ENCANADOR OU BOMBEIRO HIDRÁULICO COM ENCARGOS COMPLEMENTARES | E148: H | F148: 0.262 | G148: 13.58 | H148: 15.08 | I148: 3.56 | J148: 3.95
B149: SINAPI | C149: 88267 | D149: ENCANADOR OU BOMBEIRO HIDRÁULICO COM ENCARGOS COMPLEMENTARES | E149: H | F149: 0.262 | G149: 17.53 | H149: 19.64 | I149: 4.59 | J149: 5.15
G150: 0 | H150: 0 | I150: 0 | J150: 0
B151: MÃO DE OBRA (B) - TOTAL | I151: 8.15 | J151: 9.1
B152: SINAPI_I | C152: 3148 | D152: FITA VEDA ROSCA EM ROLOS DE 18 MM X 50 M (L X C) | E152: UN | F152: 0.013 | G152: 12.9 | H152: 12.9 | I152: 0.17 | J152: 0.17
B153: SINAPI_I | C153: 7307 | D153: FUNDO ANTICORROSIVO PARA METAIS FERROSOS (ZARCAO) | E153: L | F153: 0.002 | G153: 23.65 | H153: 23.65 | I153: 0.05 | J153: 0.05
B154: COTAÇÃO | C154: COT 291_SEE | D154: FLANGE GALVANIZADA 2.1/2" | E154: UN | F154: 1 | G154: 151.8966667 | H154: 151.8966667 | I154: 151.9 | J154: 151.9
B155: MATERIAL (C) - TOTAL | I155: 152.12 | J155: 152.12
A157: 22 | B157: FONTE | C157: CÓDIGO | D157: DESCRIÇÃO | E157: UNIDADE | F157: COEFIC. | G157: CUSTO UNITÁRIO | I157: CUSTO TOTAL (A) + (B) + (C) + (D) + (E)
G158: DESONERADO | H158: NÃO DESONER. | I158: DESONERADO | J158: NÃO DESONER.
B159: COMPOSIÇÃO | C159: COMP 022_SEE | D159: TAMPÃO FOFO 40X50CM C/INSCRIÇÃO | E159: UN | G159: - | H159: - | I159: 199.83 | J159: 200.15
B160: AGETOP_I | C160: 11 | D160: ENCANADOR | E160: h | F160: 0.15 | G160: 13.4 | H160: 15.53 | I160: 2.01 | J160: 2.33
G161: 0 | H161: 0 | I161: 0 | J161: 0
G162: 0 | H162: 0 | I162: 0 | J162: 0
B163: MÃO DE OBRA (B) - TOTAL | I163: 2.01 | J163: 2.33
B164: SINAPI_I | C164: 11293 | D164: TAMPAO FOFO SIMPLES COM BASE, CLASSE A15 CARGA MAX 1,5 T, 400 X 500 MM, COM INSCRICAO INCENDIO | E164: UN | F164: 1 | G164: 197.82 | H164: 197.82 | I164: 197.82 | J164: 197.82
G165: 0 | H165: 0 | I165: 0 | J165: 0
G166: 0 | H166: 0 | I166: 0 | J166: 0
B167: MATERIAL (C) - TOTAL | I167: 197.82 | J167: 197.82
A169: 546 | B169: FONTE | C169: CÓDIGO | D169: DESCRIÇÃO | E169: UNID | F169: COEFIC. | G169: CUSTO UNITÁRIO | I169: CUSTO TOTAL (A) + (B) + (C) + (D) + (E)
G170: DESONERADO | H170: NÃO DESONER. | I170: DESONERADO | J170: NÃO DESONER.
B171: COMPOSIÇÃO | C171: COMP 546_SEE | D171: BUJÃO DE REBORDO 2.1/2" | E171: UN | F171: - | G171: - | H171: - | I171: 16.51 | J171: 16.76
B172: AGETOP_I | C172: 8 | D172: AJUDANTE | E172: h | F172: 0.07 | G172: 8.2 | H172: 9.51 | I172: 0.57 | J172: 0.67
B173: AGETOP_I | C173: 11 | D173: ENCANADOR | E173: h | F173: 0.07 | G173: 13.4 | H173: 15.53 | I173: 0.94 | J173: 1.09
G174: 0 | H174: 0 | I174: 0 | J174: 0
B175: MÃO DE OBRA (B) - TOTAL | I175: 1.51 | J175: 1.76
B176: COTAÇÃO | C176: COT 286_SEE | D176: BUJÃO DE REBORDO 2.1/2" | E176: UN | F176: 1 | G176: 15 | H176: 15 | I176: 15 | J176: 15
G177: 0 | H177: 0 | I177: 0 | J177: 0
G178: 0 | H178: 0 | I178: 0 | J178: 0
B179: MATERIAL (C) - TOTAL | I179: 15 | J179: 15
A181: 24 | B181: FONTE | C181: CÓDIGO | D181: DESCRIÇÃO | E181: UNIDADE | F181: COEFIC. | G181: CUSTO UNITÁRIO | I181: CUSTO TOTAL (A) + (B) + (C) + (D) + (E)
G182: DESONERADO | H182: NÃO DESONER. | I182: DESONERADO | J182: NÃO DESONER.
B183: COMPOSIÇÃO | C183: COMP 024_SEE | D183: SINALIZADOR FOTOLUMINESCENTE PARA EXTINTOR | E183: UN | G183: - | H183: - | I183: 25.27 | J183: 25.39
B184: AGETOP_I | C184: 5 | D184: SERVENTE | E184: h | F184: 0.09 | G184: 8.2 | H184: 9.51 | I184: 0.74 | J184: 0.86
G185: 0 | H185: 0 | I185: 0 | J185: 0
G186: 0 | H186: 0 | I186: 0 | J186: 0
B187: MÃO DE OBRA (B) - TOTAL | I187: 0.74 | J187: 0.86
B188: AGETOP_I | C188: 3070 | D188: BUCHA DE NYLON S-6 | E188: un | F188: 2 | G188: 0.04 | H188: 0.04 | I188: 0.08 | J188: 0.08
B189: AGETOP_I | C189: 3393 | D189: PARAFUSO P/BUCHA S-6 | E189: un | F189: 2 | G189: 0.08 | H189: 0.08 | I189: 0.16 | J189: 0.16
B190: SINAPI_I | C190: 37556 | D190: PLACA DE SINALIZACAO DE SEGURANCA CONTRA INCENDIO, FOTOLUMINESCENTE, QUADRADA, *20 X 20* CM, EM PVC *2* MM ANTI-CHAMAS (SIMBOLOS, CORES E PICTOGRAMAS CONFORME NBR 13434) | E190: UN | F190: 1 | G190: 24.29 | H190: 24.29 | I190: 24.29 | J190: 24.29
B191: MATERIAL (C) - TOTAL | I191: 24.53 | J191: 24.53
A193: 186 | B193: FONTE | C193: CÓDIGO | D193: DESCRIÇÃO | E193: UNIDADE | F193: COEFIC. | G193: CUSTO UNITÁRIO | I193: CUSTO TOTAL (A) + (B) + (C) + (D) + (E)
G194: DESONERADO | H194: NÃO DESONER. | I194: DESONERADO | J194: NÃO DESONER.
B195: COMPOSIÇÃO | C195: COMP 186_SEE | D195: BOTOEIRA BOMBA DE INCÊNDIO C/ MARTELO CONVENCIONAL/ ANALÓGICA | E195: UN | I195: 85.1 | J195: 88.54
B196: AGETOP_I | C196: 8 | D196: AJUDANTE | E196: h | F196: 1 | G196: 8.2 | H196: 9.51 | I196: 8.2 | J196: 9.51
B197: AGETOP_I | C197: 12 | D197: ELETRICISTA | E197: h | F197: 1 | G197: 13.4 | H197: 15.53 | I197: 13.4 | J197: 15.53
G198: 0 | H198: 0 | I198: 0 | J198: 0
B199: MÃO DE OBRA (B) - TOTAL | I199: 21.6 | J199: 25.04
B200: COTAÇÃO | C200: COT 088_SEE | D200: BOTOEIRA BOMBA DE INCÊNDIO C/ MARTELO CONVENCIONAL/ ANALÓGICA | E200: UN | F200: 1 | G200: 63.5 | H200: 63.5 | I200: 63.5 | J200: 63.5
G201: 0 | H201: 0 | I201: 0 | J201: 0
G202: 0 | H202: 0 | I202: 0 | J202: 0
B203: MATERIAL (C) - TOTAL | I203: 63.5 | J203: 63.5
A205: 188 | B205: FONTE | C205: CÓDIGO | D205: DESCRIÇÃO | E205: UNIDADE | F205: COEFIC. | G205: CUSTO UNITÁRIO | I205: CUSTO TOTAL (A) + (B) + (C) + (D) + (E)
G206: DESONERADO | H206: NÃO DESONER. | I206: DESONERADO | J206: NÃO DESONER.
B207: COMPOSIÇÃO | C207: COMP 188_SEE | D207: ACIONADOR MANUAL DE ALARME | E207: UN | I207: 100.61 | J207: 103.36
B208: AGETOP_I | C208: 8 | D208: AJUDANTE | E208: h | F208: 0.8 | G208: 8.2 | H208: 9.51 | I208: 6.56 | J208: 7.61
B209: AGETOP_I | C209: 12 | D209: ELETRICISTA | E209: h | F209: 0.8 | G209: 13.4 | H209: 15.53 | I209: 10.72 | J209: 12.42
G210: 0 | H210: 0 | I210: 0 | J210: 0
B211: MÃO DE OBRA (B) - TOTAL | I211: 17.28 | J211: 20.03
B212: COTAÇÃO | C212: COT 090_SEE | D212: ACIONADOR MANUAL DE ALARME | E212: UN | F212: 1 | G212: 83.33333333 | H212: 83.33333333 | I212: 83.33 | J212: 83.33
G213: 0 | H213: 0 | I213: 0 | J213: 0
G214: 0 | H214: 0 | I214: 0 | J214: 0
B215: MATERIAL (C) - TOTAL | I215: 83.33 | J215: 83.33
A217: 190 | B217: FONTE | C217: CÓDIGO | D217: DESCRIÇÃO | E217: UNIDADE | F217: COEFIC. | G217: CUSTO UNITÁRIO | I217: CUSTO TOTAL (A) + (B) + (C) + (D) + (E)
G218: DESONERADO | H218: NÃO DESONER. | I218: DESONERADO | J218: NÃO DESONER.
B219: COMPOSIÇÃO | C219: COMP 190_SEE | D219: CENTRAL DE DETECÇÃO E ALARME DE 40 SETORES COM BATERIA | E219: UN | I219: 1136.13 | J219: 1163.65
B220: AGETOP_I | C220: 8 | D220: AJUDANTE | E220: h | F220: 8 | G220: 8.2 | H220: 9.51 | I220: 65.6 | J220: 76.08
B221: AGETOP_I | C221: 12 | D221: ELETRICISTA | E221: h | F221: 8 | G221: 13.4 | H221: 15.53 | I221: 107.2 | J221: 124.24
G222: 0 | H222: 0 | I222: 0 | J222: 0
B223: MÃO DE OBRA (B) - TOTAL | I223: 172.8 | J223: 200.32
B224: COTAÇÃO | C224: COT 092_SEE | D224: CENTRAL DE DETECÇÃO E ALARME DE 40 SETORES COM BATERIA (PREÇO MÉDIO) | E224: UN | F224: 1 | G224: 963.3333333 | H224: 963.3333333 | I224: 963.33 | J224: 963.33
... 64 more rows
